Workbook

Sheet Creep Cow-Q-Lator
B1: Creep Feed Cow-Q-Lator
B2: Number of Calves fed | C2: 50 | D2: Feed Cost/ton (as fed) | F2: 250 | M2: Created by Matt Stockton and Devin Broadhead UNL
B3: Enterprise, Production Details | E3: High | F3: Low | G3: Labor and Equipment Costs | J3: Market Information
B4: Calf weight upon creep inititation | C4: =IF(E28="", ROUND(_xlfn.NORM.INV(B38,(E4+F4)/2,(E4-F4)/$B$36),0),I33) -> 217 | D4: lbs | E4: 220 | F4: 214 | G4: Cost of Creep Feeder | H4: =D24 -> 5000 | J4: Weaning | K4: Creep Feed
B5: Days on creep feed | C5: =IF(E28="",ROUND(_xlfn.NORM.INV(B39,(E5+F5)/2,(E5-F5)/$B$36),0),I34) -> 100 | D5: days | E5: 101 | F5: 99 | G5: Number of times fed per week | H5: 3 | I5: Times | J5: Avg Calf Weight | K5: =C10 -> 553.4678243 | O5: =RAND() -> 0.1255143625
B6: Expected ADG for creep calves | C6: =C7+C9 -> 3.364678243 | D6: lbs | G6: Additional labor hours per feeding | H6: 1 | I6: Hours | J6: Market Price | K6: =IF(E28="",ROUND(_xlfn.NORM.INV(B43,(M7+N7)/2,(M7-N7)/$B$36),4),I39) -> 1.6935 | M6: High | N6: Low
B7: Expected ADG non-creep calves | C7: =IF(E28="",(_xlfn.NORM.INV(B40,(E7+F7)/2,(E7-F7)/$B$36)),I35) -> 2.782692369 | D7: lbs | E7: 3 | F7: 2.5 | G7: Total wage costs ($/hr) | H7: 15 | I7: $/hr | J7: Weaning | K7: Non-Creep | M7: 1.7 | N7: 1.65
B8: Expected lbs of feed per 1lb of gain | C8: =IF(E28="",NORMINV(B41,(E8+F8)/2,(E8-F8)/B36),I36) -> 7.714963886 | E8: 12 | F8: 3.5 | G8: Life Expectancy of the Creep Feeder | H8: 10 | I8: years | J8: Avg Calf Weight | K8: =C11 -> 495.2692369
B9: Expected ADG of Creep Feed | C9: =C12/C8 -> 0.581985874 | D9: lbs | G9: Total miles driven/feeding | H9: 0.1 | I9: miles | J9: Market Price | K9: =K6+((C10-C11)/100)*M12 -> 1.742968799 | M9: Possible Price Slide Range Per cwt
B10: Creep calves ending weight | C10: =C4+(C5*C6) -> 553.4678243 | D10: lbs | G10: Expected Fuel Cost/gal | H10: 3.3 | I10: $/gal | J10: Price Slide Difference | K10: =K9-K6 -> 0.04946879929 | M10: =VLOOKUP(1,HighLow,G45) -> 0.13 | N10: =VLOOKUP(2,HighLow,G45) -> 0 | O10: =RAND() -> 0.5321683489
B11: Non Creep calves ending weight | C11: =C4+(C5*C7) -> 495.2692369 | D11: lbs | G11: Expected miles per gallon (to feed) | H11: 10 | J11: Expected Price Difference in cents | M11: Price slide used, $/cwt | O11: =RAND() -> 0.5342150495
B12: Avg Daily Feed Intake(as fed) | C12: =IF(E28="",ROUND(_xlfn.NORM.INV(B42,(E12+F12)/2,(E12-F12)/$B$36),2),I37) -> 4.49 | D12: lbs as fed | E12: 5 | F12: 4 | G12: Miscellaneous Costs | H12: 30 | J12: between Creep and Non Creep Calves | M12: =F46 -> 0.085
B13: Expected feed loss | C13: =IF(E28="",ROUND(_xlfn.NORM.INV(B47,(E13+F13)/2,(E13-F13)/$B$36),4),I38) -> 0.001 | E13: 0.001 | F13: 0.0009 | G13: Labor Hours/Calf to Feed Creep | H13: =(((((C5/7)*H5)*H6)))/C2 -> 0.8571428571
B14: Feed needed per calf | C14: =C12*(1+C13)*C5 -> 449.449 | D14: lbs | G14: Labor Costs /Calf to Feed Creep | H14: =H13*H7 -> 12.85714286 | J14: Calf Price Slide Weight Group | L14: =HLOOKUP(G45,WeightClass,2) -> 450-550 | M14: Lbs
B16: The Profit Chart figure uses the average of the possible outcomes generated. If you wish to use the actual average expected outcome indicate by changing "Cell O16" to yes, and following the instructions staring in "Cell J31".
B18: Total Expected Creep Feed Purchased or Fed | F18: Total Feeding Costs | H18: Itemized Labor Costs-Per Calf | J18: Expected Average Daily Gain (ADG) | M18: Individual Animal Value
B19: Feed Per Head | D19: =ROUND(C14,0) -> 449 | F19: Per Head | G19: =(D22*D19)+((((((C5/7)*H5)*H9)/H11)*H10)/C2)+((D24/H8)/C2)+((((C5/7)*H5)*H6)/C2)*H7 -> 79.01042857 | H19: Feeder Cost per calf | I19: =(H4-C27)/H8/C2 -> 10 | J19: =(C10-C4)/C5 -> 3.364678243 | K19: Lbs/Day | M19: W/Creep Feed | N19: =K5*K6 -> 937.2977605
B20: Total creep feed needed for all calves | D20: =D19*C2 -> 22450 | F20: Total | G20: =G19*C2 -> 3950.521429 | H20: Labor Costs | I20: =(H13*H7)/C2 -> 0.2571428571 | J20: lbs of creep feed per 1 lb of gain | M20: WO/ Creep Feed | N20: =K8*K9 -> 863.2388272
B21: Cost | D21: =(D20/2000)*F2 -> 2806.25 | H21: Transportation Cost | I21: =((H9/H11)*ROUNDUP(((C5/7)*H5),0)*H10)/C2 -> 0.02838 | J21: =C8 -> 7.714963886 | K21: Lbs | M21: Value Difference | N21: =N19-N20 -> 74.05893328
B22: Creep Feed Cost/lb | D22: =D21/D20 -> 0.125 | J22: Lbs Gained | K22: =C10-C11 -> 58.1985874 | M22: Added Costs | N22: =G19 -> 79.01042857
B23: Feed Cost/Hd | D23: =D22*D19 -> 56.125 | M23: Profit or Loss | N23: =N21-N22 -> -4.951495289
B24: Total Feed Bunks Required | C24: =(1/C26)*C2 -> 1 | D24: =C24*C25 -> 5000 | E24: *If Feeder is already owned simply put a "0" for the "Cost Per Feed Bunk
B25: Cost Per Creep Feeder | C25: 5000 | D25: $/Unit | E25: *We used a creep feeder that can accommodate 50 head of creep fed calves | H25: Summary
B26: Calves Per Feeder | C26: 50 | D26: head | G26: Total Season's Economic Summary at Weaning | M26: Input cells (Unlocked)
B27: Salvage Vaue of the Feeder | C27: 0 | D27: $/Unit | G27: Net Income | H27: per head | I27: Total | M27: Calculated/Output cells (Locked)
B28: *Change "CELL E28" to a value to calculate only the average | G28: Creep | H28: =N19-G19 -> 858.287332 | I28: =H28*C2 -> 42914.3666
B29: *Press the "Simulate" button to create the data and graph that represents | G29: No Creep | H29: =N20 -> 863.2388272 | I29: =H29*C2 -> 43161.94136
B30: the range of the possible outcomes | G30: Net Return on Creep Feed | H30: =H28-H29 -> -4.951495289 | I30: =H30*C2 -> -247.5747645
B31: * Press F9 to view how the outcome might vary, depending on the range used in the various High and Low values | J31: ***Please put a 1 in "Cell E28" and copy the Profit or Loss "Cell N23", into "Cell O31". | O31: -5.77
B32: Range B33 to I46 has hidden values and references used in the calculations | J32: Then remove the 1 to simulate the scenario and the graph's red line will be the proper value for that scenario.
E33: Cost/Calf for labor | G33: =((((C5/7)*H5)*H6)/C2)*H7 -> 12.85714286 | H33: Avg Calf Wt | I33: =(E4+F4)/2 -> 217
E34: Bunk Cost/Calf/Year | G34: =((D24/H8)/C2) -> 10 | H34: Avg Days On Creep | I34: =(E5+F5)/2 -> 100
E35: Trans Cost/Calf | G35: =(((((C5/7)*H5)*(H9/H11))*H10)/C2) -> 0.02828571429 | H35: Avg Expected ADG | I35: =(E7+F7)/2 -> 2.75
B36: 6 | E36: Cost of Creep/Calf | G36: =(D22*D19) -> 56.125 | H36: Avg Lbs Grain for 1 lb Gain | I36: =(E8+F8)/2 -> 7.75
B37: Randon Num | D37: Table for finding calf weight range | G37: =SUM(G33:G36) -> 79.01042857 | H37: Avg Daily Feed Intake | I37: =(E12+F12)/2 -> 4.5
B38: =RAND() -> 0.442044818 | C38: Calf Weight | D38: 350 | E38: 3 | F38: =IF(C11<D38,1,0) -> 0 | G38: =F38*E38 -> 0 | H38: Avg Feed Loss | I38: =(E13+F13)/2 -> 0.00095
B39: 0.8713277727 | C39: Days on Feed | D39: 450 | E39: 4 | F39: =IF($C$11<=D39,IF(SUM(F38)=1,0,1),0) -> 0 | G39: =F39*E39 -> 0 | H39: Avg Price Recvd | I39: =(M7+N7)/2 -> 1.675
B40: =RAND() -> 0.6525848336 | C40: ADG N/Creep | D40: 550 | E40: 5 | F40: =IF($C$11<=D40,IF(SUM(F38:F39)=1,0,1),0) -> 1 | G40: 5
B41: =RAND() -> 0.4901346148 | C41: Lbs/Lb Gain | D41: 650 | E41: 6 | F41: =IF($C$11<=D41,IF(SUM(F38:F40)=1,0,1),0) -> 0 | G41: 0
B42: =RAND() -> 0.4867502377 | C42: Feed Intake | D42: 750 | E42: 7 | F42: =IF($C$11<=D42,IF(SUM(F38:F41)=1,0,1),0) -> 0 | G42: 0
B43: =RAND() -> 0.9866323815 | C43: Mkt Price | D43: 850 | E43: 8 | F43: =IF($C$11<=D43,IF(SUM(F38:F42)=1,0,1),0) -> 0 | G43: 0
D44: 950 | E44: 9 | F44: =IF($C$11<=D44,IF(SUM(F38:F43)=1,0,1),0) -> 0 | G44: 0
G45: =SUM(G38:G44) -> 5
D46: Year Selection | E46: =IF(E28="",RANDBETWEEN(1,11),12) -> 8 | F46: =VLOOKUP(E46,SlideTable,G45) -> 0.085 | G46: =VLOOKUP(E46,SlideTable,2) -> 2007
B47: =RAND() -> 0.6053793736

Sheet PriceSlide
B2: ble I. Annual average feeder steer price slides, by weight category. | K2: Table II. Annual average feeder heifer price slides, by weight category.
B3: Year | C3: 250-350 lb | D3: 350-450 | E3: 450-550 | F3: 550-650 | G3: 650-750 | H3: 750-850 | I3: 850-950 | K3: Year | L3: 250-350 lb | M3: 350-450 | N3: 450-550 | O3: 550-650 | P3: 650-750 | Q3: 750-850 | R3: 850-950
B4: 0 | C4: Slide | D4: Slide | E4: Slide | F4: Slide | G4: Slide | H4: Slide | I4: Slide | K4: 0 | L4: Slide | M4: Slide | N4: Slide | O4: Slide | P4: Slide | Q4: Slide | R4: Slide
B5: 0 | C5: ($/cwt) | D5: ($/cwt) | E5: ($/cwt) | F5: ($/cwt) | G5: ($/cwt) | H5: ($/cwt) | I5: ($/cwt) | K5: 0 | L5: ($/cwt) | M5: ($/cwt) | N5: ($/cwt) | O5: ($/cwt) | P5: ($/cwt) | Q5: ($/cwt) | R5: ($/cwt)
B6: 2000 | C6: 0.09 | D6: 0.08 | E6: 0.08 | F6: 0.1 | G6: 0.07 | H6: 0.05 | I6: 0.05 | K6: 2000 | L6: 0.05 | M6: 0.08 | N6: 0.08 | O6: 0.06 | P6: 0.04 | Q6: 0.04 | R6: 0.03
B7: 2001 | C7: 0.07 | D7: 0.08 | E7: 0.09 | F7: 0.09 | G7: 0.07 | H7: 0.04 | I7: 0.04 | K7: 2001 | L7: 0.09 | M7: 0.09 | N7: 0.09 | O7: 0.07 | P7: 0.04 | Q7: 0.04 | R7: 0
B8: 2002 | C8: 0.04 | D8: 0.1 | E8: 0.09 | F8: 0.07 | G8: 0.05 | H8: 0.04 | I8: 0.05 | K8: 2002 | L8: 0.05 | M8: 0.08 | N8: -0.09 | O8: 0.22 | P8: 0.04 | Q8: 0.03 | R8: 0
B9: 2003 | C9: 0.09 | D9: 0.01 | E9: 0.18 | F9: 0.08 | G9: 0.05 | H9: 0.04 | I9: 0.03 | K9: 2003 | L9: 0.05 | M9: 0.08 | N9: 0.08 | O9: -0.03 | P9: 0.11 | Q9: 0.03 | R9: 0.04
B10: 2004 | C10: 0.12 | D10: 0.11 | E10: 0.1 | F10: 0.1 | G10: 0.07 | H10: 0.05 | I10: 0.05 | K10: 2004 | L10: 0.13 | M10: 0.1 | N10: 0.09 | O10: 0.08 | P10: -0.01 | Q10: 0.11 | R10: 0.06
B11: 2005 | C11: 0.17 | D11: 0.15 | E11: 0.12 | F11: 0.12 | G11: 0.09 | H11: 0.06 | I11: 0.06 | K11: 2005 | L11: 0.15 | M11: 0.11 | N11: 0.12 | O11: 0.09 | P11: 0.07 | Q11: 0.06 | R11: 0.04
B12: 2006 | C12: 0.18 | D12: 0.15 | E12: 0.13 | F12: 0.11 | G12: 0.08 | H12: 0.05 | I12: 0.06 | K12: 2006 | L12: 0.09 | M12: 0.13 | N12: 0.11 | O12: 0.09 | P12: 0.07 | Q12: 0.05 | R12: 0.04
B13: 2007 | C13: 0.08 | D13: 0.1 | E13: 0.09 | F13: 0.09 | G13: 0.06 | H13: 0.04 | I13: 0.04 | K13: 2007 | L13: 0.05 | M13: 0.09 | N13: 0.08 | O13: 0.06 | P13: 0.04 | Q13: 0.02 | R13: 0.04
B14: 2008 | C14: 0.07 | D14: 0.07 | E14: 0.07 | F14: 0.08 | G14: 0.06 | H14: 0.03 | I14: 0.04 | K14: 2008 | L14: 0.03 | M14: 0.06 | N14: 0.06 | O14: 0.05 | P14: 0.03 | Q14: 0.02 | R14: 0.04
B15: 2009 | C15: 0.09 | D15: 0.05 | E15: 0.08 | F15: 0.08 | G15: 0.06 | H15: 0.04 | I15: 0.04 | K15: 2009 | L15: 0.04 | M15: 0.05 | N15: 0.06 | O15: 0.05 | P15: 0.04 | Q15: 0.03 | R15: 0.04
B16: 2010 | C16: 0.03 | D16: 0.1 | E16: 0.07 | F16: 0.08 | G16: 0.07 | H16: 0.05 | I16: 0.04 | K16: 2010 | L16: 0.02 | M16: 0.05 | N16: 0.06 | O16: 0.07 | P16: 0.05 | Q16: 0.03 | R16: 0.05
E20: 1 | F20: 2 | G20: 3 | H20: 4 | I20: 5 | J20: 6 | K20: 7 | L20: 8 | M20: 9
E21: 2 | F21: Year | G21: 250-350 | H21: 350-450 | I21: 450-550 | J21: 550-650 | K21: 650-750 | L21: 750-850 | M21: 850-950
E22: 3 | G22: Slide | H22: Slide | I22: Slide | J22: Slide | K22: Slide | L22: Slide | M22: Slide
E23: 4 | G23: ($/cwt) | H23: ($/cwt) | I23: ($/cwt) | J23: ($/cwt) | K23: ($/cwt) | L23: ($/cwt) | M23: ($/cwt)
E24: 1 | F24: 2000 | G24: =(C6+L6)/2 -> 0.07 | H24: =(D6+M6)/2 -> 0.08 | I24: 0.08 | J24: 0.08 | K24: 0.055 | L24: 0.045 | M24: 0.04
E25: 2 | F25: 2001 | G25: =(C7+L7)/2 -> 0.08 | H25: =(D7+M7)/2 -> 0.085 | I25: =(E7+N7)/2 -> 0.09 | J25: =(F7+O7)/2 -> 0.08 | K25: =(G7+P7)/2 -> 0.055 | L25: =(H7+Q7)/2 -> 0.04 | M25: 0
E26: 3 | F26: 2002 | G26: 0.045 | H26: 0.09 | I26: 0 | J26: 0.145 | K26: 0.045 | L26: 0.035 | M26: 0
E27: 4 | F27: 2003 | G27: 0.07 | H27: 0.045 | I27: 0.13 | J27: 0.025 | K27: 0.08 | L27: 0.035 | M27: =(I9+R9)/2 -> 0.035
E28: 5 | F28: 2004 | G28: 0.125 | H28: 0.105 | I28: 0.095 | J28: 0.09 | K28: 0.03 | L28: 0.08 | M28: 0.055
E29: 6 | F29: 2005 | G29: 0.16 | H29: 0.13 | I29: 0.12 | J29: 0.105 | K29: 0.08 | L29: 0.06 | M29: 0.05
E30: 7 | F30: 2006 | G30: 0.135 | H30: 0.14 | I30: 0.12 | J30: 0.1 | K30: 0.075 | L30: 0.05 | M30: 0.05
E31: 8 | F31: 2007 | G31: 0.065 | H31: 0.095 | I31: 0.085 | J31: 0.075 | K31: 0.05 | L31: 0.03 | M31: 0.04
E32: 9 | F32: 2008 | G32: 0.05 | H32: 0.065 | I32: 0.065 | J32: 0.065 | K32: 0.045 | L32: 0.025 | M32: 0.04
E33: 10 | F33: 2009 | G33: 0.065 | H33: 0.05 | I33: 0.07 | J33: 0.065 | K33: 0.05 | L33: 0.035 | M33: 0.04
E34: 11 | F34: 2010 | G34: 0.025 | H34: 0.075 | I34: 0.065 | J34: 0.075 | K34: 0.06 | L34: 0.04 | M34: 0.045
E35: 12 | F35: Avg | G35: =AVERAGE(G24:G34) -> 0.08090909091 | H35: =AVERAGE(H24:H34) -> 0.08727272727 | I35: 0.08363636364 | J35: 0.08227272727 | K35: 0.05681818182 | L35: 0.04318181818 | M35: 0.03590909091
G37: 3 | H37: 4 | I37: 5 | J37: 6 | K37: 7 | L37: 8 | M37: 9
E38: 1 | F38: Maximum | G38: =MAX(G24:G34) -> 0.16 | H38: 0.14 | I38: 0.13 | J38: 0.145 | K38: 0.08 | L38: 0.08 | M38: 0.055
E39: 2 | F39: Minimum | G39: =MIN(G24:G34) -> 0.025 | H39: 0.045 | I39: 0 | J39: 0.025 | K39: 0.03 | L39: 0.025 | M39: 0
B40: Source: | C40: https://extensionpublications.unl.edu/assets/html/g2088/build/g2088.htm
B41: Rick Rasby
B42: Darrell Mark

Sheet SimData
D1: Mean | E1: =AVERAGE(E6:E505) -> -1.2718 | F1: =E255 -> -4.82 | G1: ='Creep Cow-Q-Lator'!O31 -> -5.77
D2: Max | E2: =E505 -> 140.74
D3: Min | E3: =E6 -> -36.85
A4: StDev
A5: CV | E5: Profit | F5: CDFProb. | G5: Average | H5: CDFProb.
E6: -36.85 | F6: 0 | G6: =IF('Creep Cow-Q-Lator'!O16="No",E1,IF('Creep Cow-Q-Lator'!O16="Yes",G1,F1)) -> -4.82 | H6: 0
E7: -35.4 | F7: 0.002004008016 | G7: =G6 -> -4.82 | H7: 0.002004008016
A8: Iteration | B8: Profit | C8: Deterministic | E8: -35.12 | F8: 0.004008016032 | G8: =G7 -> -4.82 | H8: 0.004008016032
A9: 1 | B9: 28.28 | C9: 544.1916102 | D9: 495.1214818 | E9: -33.91 | F9: 0.006012024048 | G9: =G8 -> -4.82 | H9: 0.006012024048
A10: 2 | B10: 37.69 | C10: 534.613652 | D10: 489.5358091 | E10: -33.9 | F10: 0.008016032064 | G10: -4.82 | H10: 0.008016032064
A11: 3 | B11: 11.26 | C11: 581.4611995 | D11: 499.4129137 | E11: -33.49 | F11: 0.01002004008 | G11: -4.82 | H11: 0.01002004008
A12: 4 | B12: -33.9 | C12: 545.5993869 | D12: 484.1663299 | E12: -33.21 | F12: 0.0120240481 | G12: -4.82 | H12: 0.0120240481
A13: 5 | B13: 11.7 | C13: 585.8350988 | D13: 484.408361 | E13: -31.99 | F13: 0.01402805611 | G13: -4.82 | H13: 0.01402805611
A14: 6 | B14: -4.37 | C14: 553.7635137 | D14: 479.7710243 | E14: -31.85 | F14: 0.01603206413 | G14: -4.82 | H14: 0.01603206413
A15: 7 | B15: 2.87 | C15: 544.1303292 | D15: 493.212596 | E15: -31.19 | F15: 0.01803607214 | G15: -4.82 | H15: 0.01803607214
A16: 8 | B16: -29.22 | C16: 551.2057477 | D16: 487.5379919 | E16: -30.85 | F16: 0.02004008016 | G16: -4.82 | H16: 0.02004008016
A17: 9 | B17: 24.77 | C17: 557.7274625 | D17: 484.5244965 | E17: -30.54 | F17: 0.02204408818 | G17: -4.82 | H17: 0.02204408818
A18: 10 | B18: -9.03 | C18: 534.767904 | D18: 491.7105949 | E18: -30.42 | F18: 0.02404809619 | G18: -4.82 | H18: 0.02404809619
A19: 11 | B19: 21.94 | C19: 551.0833058 | D19: 490.5890304 | E19: -29.72 | F19: 0.02605210421 | G19: -4.82 | H19: 0.02605210421
A20: 12 | B20: 22.24 | C20: 573.4140376 | D20: 495.2366912 | E20: -29.33 | F20: 0.02805611222 | G20: -4.82 | H20: 0.02805611222
A21: 13 | B21: -10.05 | C21: 579.4366306 | D21: 482.7217739 | E21: -29.22 | F21: 0.03006012024 | G21: -4.82 | H21: 0.03006012024
A22: 14 | B22: -3.87 | C22: 564.569485 | D22: 492.3467128 | E22: -28.73 | F22: 0.03206412826 | G22: -4.82 | H22: 0.03206412826
A23: 15 | B23: 10.34 | C23: 602.7172876 | D23: 493.8990874 | E23: -28.64 | F23: 0.03406813627 | G23: -4.82 | H23: 0.03406813627
A24: 16 | B24: -27.08 | C24: 528.1457315 | D24: 495.502782 | E24: -28.4 | F24: 0.03607214429 | G24: -4.82 | H24: 0.03607214429
A25: 17 | B25: 19.74 | C25: 545.1029103 | D25: 490.582606 | E25: -28.39 | F25: 0.0380761523 | G25: -4.82 | H25: 0.0380761523
A26: 18 | B26: -10.33 | C26: 542.6216161 | D26: 496.5870704 | E26: -28.22 | F26: 0.04008016032 | G26: -4.82 | H26: 0.04008016032
A27: 19 | B27: -18.38 | C27: 548.3824799 | D27: 493.0944645 | E27: -27.78 | F27: 0.04208416834 | G27: -4.82 | H27: 0.04208416834
A28: 20 | B28: -15.02 | C28: 533.578859 | D28: 499.6510686 | E28: -27.08 | F28: 0.04408817635 | G28: -4.82 | H28: 0.04408817635
A29: 21 | B29: -11.95 | C29: 553.3126183 | D29: 478.3521562 | E29: -26.92 | F29: 0.04609218437 | G29: -4.82 | H29: 0.04609218437
A30: 22 | B30: 13.09 | C30: 548.9697961 | D30: 495.2504782 | E30: -26.88 | F30: 0.04809619238 | G30: -4.82 | H30: 0.04809619238
A31: 23 | B31: -10.95 | C31: 527.8542323 | D31: 492.3548349 | E31: -26.85 | F31: 0.0501002004 | G31: -4.82 | H31: 0.0501002004
A32: 24 | B32: 20.69 | C32: 550.9765305 | D32: 477.791237 | E32: -26.57 | F32: 0.05210420842 | G32: -4.82 | H32: 0.05210420842
A33: 25 | B33: -19.64 | C33: 534.7364345 | D33: 507.6289773 | E33: -26.52 | F33: 0.05410821643 | G33: -4.82 | H33: 0.05410821643
A34: 26 | B34: -22.92 | C34: 550.3737108 | D34: 507.4514964 | E34: -26.14 | F34: 0.05611222445 | G34: -4.82 | H34: 0.05611222445
A35: 27 | B35: 2.84 | C35: 558.4525795 | D35: 491.9166906 | E35: -25.89 | F35: 0.05811623246 | G35: -4.82 | H35: 0.05811623246
A36: 28 | B36: -8.35 | C36: 552.8892478 | D36: 493.8620596 | E36: -25.8 | F36: 0.06012024048 | G36: -4.82 | H36: 0.06012024048
A37: 29 | B37: 28.31 | C37: 552.8232749 | D37: 487.0140231 | E37: -25.51 | F37: 0.0621242485 | G37: -4.82 | H37: 0.0621242485
A38: 30 | B38: 62.24 | C38: 576.7296531 | D38: 486.565879 | E38: -25.5 | F38: 0.06412825651 | G38: -4.82 | H38: 0.06412825651
A39: 31 | B39: 16.82 | C39: 565.9108587 | D39: 497.3269611 | E39: -25.4 | F39: 0.06613226453 | G39: -4.82 | H39: 0.06613226453
A40: 32 | B40: 31 | C40: 557.838538 | D40: 494.3356406 | E40: -25.36 | F40: 0.06813627255 | G40: -4.82 | H40: 0.06813627255
A41: 33 | B41: 13.71 | C41: 542.9043263 | D41: 497.6559989 | E41: -25.27 | F41: 0.07014028056 | G41: -4.82 | H41: 0.07014028056
A42: 34 | B42: 140.74 | C42: 561.8081611 | D42: 496.1787286 | E42: -25.13 | F42: 0.07214428858 | G42: -4.82 | H42: 0.07214428858
A43: 35 | B43: -4.32 | C43: 548.0049862 | D43: 485.1927142 | E43: -24.88 | F43: 0.07414829659 | G43: -4.82 | H43: 0.07414829659
A44: 36 | B44: 0.93 | C44: 546.2896114 | D44: 518.2344447 | E44: -24.85 | F44: 0.07615230461 | G44: -4.82 | H44: 0.07615230461
A45: 37 | B45: -12.35 | C45: 554.1071893 | D45: 500.0486759 | E45: -24.77 | F45: 0.07815631263 | G45: -4.82 | H45: 0.07815631263
A46: 38 | B46: -7.89 | C46: 542.7571389 | D46: 481.8104306 | E46: -24.75 | F46: 0.08016032064 | G46: -4.82 | H46: 0.08016032064
A47: 39 | B47: 37.23 | C47: 561.2438355 | D47: 506.0576097 | E47: -24.68 | F47: 0.08216432866 | G47: -4.82 | H47: 0.08216432866
A48: 40 | B48: 6.28 | C48: 578.4063018 | D48: 493.2570382 | E48: -24.62 | F48: 0.08416833667 | G48: -4.82 | H48: 0.08416833667
A49: 41 | B49: -11.33 | C49: 526.0134353 | D49: 490.1780602 | E49: -24 | F49: 0.08617234469 | G49: -4.82 | H49: 0.08617234469
A50: 42 | B50: 9.12 | C50: 570.8809048 | D50: 504.9256795 | E50: -23.95 | F50: 0.08817635271 | G50: -4.82 | H50: 0.08817635271
A51: 43 | B51: -19.06 | C51: 567.2914844 | D51: 502.4278568 | E51: -23.86 | F51: 0.09018036072 | G51: -4.82 | H51: 0.09018036072
A52: 44 | B52: 8.28 | C52: 553.2162749 | D52: 493.733272 | E52: -23.75 | F52: 0.09218436874 | G52: -4.82 | H52: 0.09218436874
A53: 45 | B53: 39.96 | C53: 567.9670126 | D53: 476.1956733 | E53: -23.63 | F53: 0.09418837675 | G53: -4.82 | H53: 0.09418837675
A54: 46 | B54: 18.42 | C54: 561.8054013 | D54: 498.1419707 | E54: -23.62 | F54: 0.09619238477 | G54: -4.82 | H54: 0.09619238477
A55: 47 | B55: 17.28 | C55: 541.822552 | D55: 491.5941924 | E55: -23.56 | F55: 0.09819639279 | G55: -4.82 | H55: 0.09819639279
A56: 48 | B56: 4.21 | C56: 577.7989191 | D56: 494.839527 | E56: -23.36 | F56: 0.1002004008 | G56: -4.82 | H56: 0.1002004008
A57: 49 | B57: -20.15 | C57: 564.8284276 | D57: 488.4960718 | E57: -23.26 | F57: 0.1022044088 | G57: -4.82 | H57: 0.1022044088
A58: 50 | B58: -10.8 | C58: 563.3683435 | D58: 491.675216 | E58: -23.12 | F58: 0.1042084168 | G58: -4.82 | H58: 0.1042084168
A59: 51 | B59: -13.51 | C59: 535.9062725 | D59: 504.2816766 | E59: -23.1 | F59: 0.1062124248 | G59: -4.82 | H59: 0.1062124248
A60: 52 | B60: -21.67 | C60: 544.1279445 | D60: 480.0029 | E60: -23.07 | F60: 0.1082164329 | G60: -4.82 | H60: 0.1082164329
A61: 53 | B61: -16.64 | C61: 547.2411706 | D61: 494.1733278 | E61: -22.99 | F61: 0.1102204409 | G61: -4.82 | H61: 0.1102204409
A62: 54 | B62: 2.68 | C62: 563.0154894 | D62: 506.8620336 | E62: -22.92 | F62: 0.1122244489 | G62: -4.82 | H62: 0.1122244489
A63: 55 | B63: -1.96 | C63: 525.8642642 | D63: 506.2081774 | E63: -22.91 | F63: 0.1142284569 | G63: -4.82 | H63: 0.1142284569
A64: 56 | B64: -8.19 | C64: 554.0001032 | D64: 489.9971639 | E64: -22.81 | F64: 0.1162324649 | G64: -4.82 | H64: 0.1162324649
A65: 57 | B65: -25.8 | C65: 582.09907 | D65: 500.2817656 | E65: -22.69 | F65: 0.1182364729 | G65: -4.82 | H65: 0.1182364729
A66: 58 | B66: -16.53 | C66: 547.0716566 | D66: 498.0567088 | E66: -22.59 | F66: 0.120240481 | G66: -4.82 | H66: 0.120240481
A67: 59 | B67: -31.19 | C67: 527.2671506 | D67: 501.9356979 | E67: -22.59 | F67: 0.122244489 | G67: -4.82 | H67: 0.122244489
A68: 60 | B68: 18.47 | C68: 555.0782581 | D68: 488.9819651 | E68: -22.43 | F68: 0.124248497 | G68: -4.82 | H68: 0.124248497
A69: 61 | B69: 3.29 | C69: 553.6849996 | D69: 495.196368 | E69: -22.03 | F69: 0.126252505 | G69: -4.82 | H69: 0.126252505
A70: 62 | B70: -8.75 | C70: 550.5975312 | D70: 499.6396879 | E70: -21.97 | F70: 0.128256513 | G70: -4.82 | H70: 0.128256513
A71: 63 | B71: -5.18 | C71: 557.122356 | D71: 482.2122258 | E71: -21.9 | F71: 0.130260521 | G71: -4.82 | H71: 0.130260521
A72: 64 | B72: -4.31 | C72: 573.8120112 | D72: 487.6920297 | E72: -21.89 | F72: 0.1322645291 | G72: =G71 -> -4.82 | H72: 0.1322645291
A73: 65 | B73: -15.8 | C73: 566.7354409 | D73: 493.7898393 | E73: -21.85 | F73: 0.1342685371 | G73: -4.82 | H73: 0.1342685371
A74: 66 | B74: -26.88 | C74: 551.2583109 | D74: 492.8186391 | E74: -21.72 | F74: 0.1362725451 | G74: -4.82 | H74: 0.1362725451
A75: 67 | B75: -1.35 | C75: 543.4395175 | D75: 495.3361679 | E75: -21.67 | F75: 0.1382765531 | G75: -4.82 | H75: 0.1382765531
A76: 68 | B76: -16.16 | C76: 557.8350585 | D76: 485.7766732 | E76: -21.67 | F76: 0.1402805611 | G76: -4.82 | H76: 0.1402805611
A77: 69 | B77: 47.23 | C77: 542.4192728 | D77: 499.9128677 | E77: -21.65 | F77: 0.1422845691 | G77: -4.82 | H77: 0.1422845691
A78: 70 | B78: -27.78 | C78: 563.1496668 | D78: 492.2619899 | E78: -21.45 | F78: 0.1442885772 | G78: -4.82 | H78: 0.1442885772
A79: 71 | B79: 1.08 | C79: 548.8569234 | D79: 505.1993842 | E79: -21.29 | F79: 0.1462925852 | G79: -4.82 | H79: 0.1462925852
A80: 72 | B80: -18.51 | C80: 573.6336482 | D80: 475.9254792 | E80: -21.26 | F80: 0.1482965932 | G80: -4.82 | H80: 0.1482965932
A81: 73 | B81: -3.81 | C81: 558.4091452 | D81: 476.1380133 | E81: -21.12 | F81: 0.1503006012 | G81: -4.82 | H81: 0.1503006012
A82: 74 | B82: -4.91 | C82: 529.6664502 | D82: 489.0617937 | E82: -20.82 | F82: 0.1523046092 | G82: -4.82 | H82: 0.1523046092
A83: 75 | B83: -22.59 | C83: 536.117972 | D83: 491.0709811 | E83: -20.79 | F83: 0.1543086172 | G83: -4.82 | H83: 0.1543086172
A84: 76 | B84: 10.69 | C84: 540.482291 | D84: 475.1022502 | E84: -20.77 | F84: 0.1563126253 | G84: -4.82 | H84: 0.1563126253
A85: 77 | B85: -21.45 | C85: 551.0892914 | D85: 496.9751404 | E85: -20.18 | F85: 0.1583166333 | G85: -4.82 | H85: 0.1583166333
A86: 78 | B86: -4.7 | C86: 538.2530781 | D86: 489.3409666 | E86: -20.15 | F86: 0.1603206413 | G86: -4.82 | H86: 0.1603206413
A87: 79 | B87: -9.35 | C87: 551.4623272 | D87: 491.4333661 | E87: -20.1 | F87: 0.1623246493 | G87: -4.82 | H87: 0.1623246493
A88: 80 | B88: 21.1 | C88: 560.2235219 | D88: 490.5097056 | E88: -20.07 | F88: 0.1643286573 | G88: -4.82 | H88: 0.1643286573
A89: 81 | B89: -4.55 | C89: 554.009666 | D89: 502.6636415 | E89: -19.84 | F89: 0.1663326653 | G89: -4.82 | H89: 0.1663326653
A90: 82 | B90: 1.7 | C90: 550.4316513 | D90: 510.6884978 | E90: -19.64 | F90: 0.1683366733 | G90: -4.82 | H90: 0.1683366733
A91: 83 | B91: -15.6 | C91: 551.7624767 | D91: 478.0349244 | E91: -19.53 | F91: 0.1703406814 | G91: -4.82 | H91: 0.1703406814
A92: 84 | B92: -20.18 | C92: 552.9082157 | D92: 481.4022624 | E92: -19.52 | F92: 0.1723446894 | G92: -4.82 | H92: 0.1723446894
A93: 85 | B93: -7.89 | C93: 570.9812514 | D93: 485.1702686 | E93: -19.28 | F93: 0.1743486974 | G93: -4.82 | H93: 0.1743486974
A94: 86 | B94: 6.59 | C94: 584.0767547 | D94: 485.4426575 | E94: -19.28 | F94: 0.1763527054 | G94: -4.82 | H94: 0.1763527054
A95: 87 | B95: -21.26 | C95: 534.0653524 | D95: 484.0847677 | E95: -19.09 | F95: 0.1783567134 | G95: -4.82 | H95: 0.1783567134
A96: 88 | B96: -14.42 | C96: 503.4173909 | D96: 477.571642 | E96: -19.06 | F96: 0.1803607214 | G96: -4.82 | H96: 0.1803607214
A97: 89 | B97: -1.46 | C97: 567.5671591 | D97: 496.425818 | E97: -18.95 | F97: 0.1823647295 | G97: -4.82 | H97: 0.1823647295
A98: 90 | B98: 29.82 | C98: 562.7531267 | D98: 481.4855778 | E98: -18.89 | F98: 0.1843687375 | G98: -4.82 | H98: 0.1843687375
A99: 91 | B99: -9.52 | C99: 552.3743011 | D99: 491.1643203 | E99: -18.57 | F99: 0.1863727455 | G99: -4.82 | H99: 0.1863727455
A100: 92 | B100: 4.86 | C100: 556.0266356 | D100: 505.8896799 | E100: -18.51 | F100: 0.1883767535 | G100: -4.82 | H100: 0.1883767535
A101: 93 | B101: 98.16 | C101: 533.484081 | D101: 496.0568402 | E101: -18.38 | F101: 0.1903807615 | G101: -4.82 | H101: 0.1903807615
A102: 94 | B102: -16.06 | C102: 554.967156 | D102: 490.9180484 | E102: -18.26 | F102: 0.1923847695 | G102: -4.82 | H102: 0.1923847695
A103: 95 | B103: -4.14 | C103: 546.843186 | D103: 487.8150158 | E103: -18.22 | F103: 0.1943887776 | G103: -4.82 | H103: 0.1943887776
A104: 96 | B104: -15.76 | C104: 556.159803 | D104: 493.5153099 | E104: -18.17 | F104: 0.1963927856 | G104: -4.82 | H104: 0.1963927856
A105: 97 | B105: -25.89 | C105: 556.9363054 | D105: 492.0924344 | E105: -18.16 | F105: 0.1983967936 | G105: -4.82 | H105: 0.1983967936
A106: 98 | B106: -16.92 | C106: 526.2343402 | D106: 502.6527461 | E106: -17.98 | F106: 0.2004008016 | G106: -4.82 | H106: 0.2004008016
A107: 99 | B107: -12.27 | C107: 540.2755801 | D107: 483.6656604 | E107: -17.91 | F107: 0.2024048096 | G107: -4.82 | H107: 0.2024048096
A108: 100 | B108: -12.25 | C108: 544.0102282 | D108: 492.6093114 | E108: -17.68 | F108: 0.2044088176 | G108: -4.82 | H108: 0.2044088176
A109: 101 | B109: 31.32 | C109: 544.5443379 | D109: 492.6531075 | E109: -17.63 | F109: 0.2064128257 | G109: -4.82 | H109: 0.2064128257
A110: 102 | B110: -17.01 | C110: 542.7866669 | D110: 488.6240224 | E110: -17.52 | F110: 0.2084168337 | G110: -4.82 | H110: 0.2084168337
A111: 103 | B111: 28.95 | C111: 534.2187502 | D111: 500.0508167 | E111: -17.16 | F111: 0.2104208417 | G111: -4.82 | H111: 0.2104208417
A112: 104 | B112: -10.01 | C112: 544.3277192 | D112: 470.25495 | E112: -17.13 | F112: 0.2124248497 | G112: -4.82 | H112: 0.2124248497
A113: 105 | B113: -1.67 | C113: 542.5731641 | D113: 504.488177 | E113: -17.12 | F113: 0.2144288577 | G113: -4.82 | H113: 0.2144288577
A114: 106 | B114: -1.06 | C114: 557.0654633 | D114: 493.0906063 | E114: -17.01 | F114: 0.2164328657 | G114: -4.82 | H114: 0.2164328657
A115: 107 | B115: -9.4 | C115: 558.6106505 | D115: 487.8635543 | E115: -16.92 | F115: 0.2184368737 | G115: -4.82 | H115: 0.2184368737
A116: 108 | B116: -1.6 | C116: 556.0136281 | D116: 491.2878802 | E116: -16.9 | F116: 0.2204408818 | G116: -4.82 | H116: 0.2204408818
A117: 109 | B117: 12.76 | C117: 548.6556909 | D117: 501.4549635 | E117: -16.87 | F117: 0.2224448898 | G117: -4.82 | H117: 0.2224448898
A118: 110 | B118: 19.6 | C118: 554.6691665 | D118: 497.8264741 | E118: -16.71 | F118: 0.2244488978 | G118: -4.82 | H118: 0.2244488978
A119: 111 | B119: -1.06 | C119: 541.5356838 | D119: 501.0259975 | E119: -16.69 | F119: 0.2264529058 | G119: -4.82 | H119: 0.2264529058
A120: 112 | B120: -5.05 | C120: 544.655467 | D120: 488.9580088 | E120: -16.65 | F120: 0.2284569138 | G120: -4.82 | H120: 0.2284569138
A121: 113 | B121: 26.74 | C121: 525.525742 | D121: 483.0051653 | E121: -16.65 | F121: 0.2304609218 | G121: -4.82 | H121: 0.2304609218
A122: 114 | B122: -21.9 | C122: 553.3720681 | D122: 478.701151 | E122: -16.64 | F122: 0.2324649299 | G122: -4.82 | H122: 0.2324649299
A123: 115 | B123: 17.32 | C123: 544.717747 | D123: 491.0941735 | E123: -16.62 | F123: 0.2344689379 | G123: -4.82 | H123: 0.2344689379
A124: 116 | B124: -21.12 | C124: 581.9276151 | D124: 483.6218247 | E124: -16.53 | F124: 0.2364729459 | G124: -4.82 | H124: 0.2364729459
A125: 117 | B125: -24.62 | C125: 551.0809858 | D125: 482.9164842 | E125: -16.49 | F125: 0.2384769539 | G125: -4.82 | H125: 0.2384769539
A126: 118 | B126: 43.69 | C126: 581.0263714 | D126: 497.6680781 | E126: -16.42 | F126: 0.2404809619 | G126: -4.82 | H126: 0.2404809619
A127: 119 | B127: 12.25 | C127: 537.2863362 | D127: 491.4936934 | E127: -16.37 | F127: 0.2424849699 | G127: -4.82 | H127: 0.2424849699
A128: 120 | B128: -23.86 | C128: 553.0787133 | D128: 481.805865 | E128: -16.33 | F128: 0.244488978 | G128: -4.82 | H128: 0.244488978
A129: 121 | B129: 25.37 | C129: 538.68857 | D129: 495.8183521 | E129: -16.27 | F129: 0.246492986 | G129: -4.82 | H129: 0.246492986
A130: 122 | B130: -25.13 | C130: 530.0641868 | D130: 490.7860583 | E130: -16.18 | F130: 0.248496994 | G130: -4.82 | H130: 0.248496994
A131: 123 | B131: -15.22 | C131: 543.6053315 | D131: 474.2058245 | E131: -16.16 | F131: 0.250501002 | G131: -4.82 | H131: 0.250501002
A132: 124 | B132: -2.53 | C132: 556.5992001 | D132: 502.695782 | E132: -16.06 | F132: 0.25250501 | G132: -4.82 | H132: 0.25250501
A133: 125 | B133: 2.26 | C133: 561.4539341 | D133: 497.3213257 | E133: -15.99 | F133: 0.254509018 | G133: -4.82 | H133: 0.254509018
A134: 126 | B134: -16.42 | C134: 563.5124993 | D134: 495.4166622 | E134: -15.84 | F134: 0.2565130261 | G134: -4.82 | H134: 0.2565130261
A135: 127 | B135: -10.63 | C135: 529.7336887 | D135: 497.8784169 | E135: -15.8 | F135: 0.2585170341 | G135: -4.82 | H135: 0.2585170341
A136: 128 | B136: -12.12 | C136: 554.4882293 | D136: 487.2021003 | E136: -15.76 | F136: 0.2605210421 | G136: =G135 -> -4.82 | H136: 0.2605210421
A137: 129 | B137: 23.68 | C137: 559.4022466 | D137: 497.1215621 | E137: -15.6 | F137: 0.2625250501 | G137: -4.82 | H137: 0.2625250501
A138: 130 | B138: 19.39 | C138: 563.0603013 | D138: 491.5759577 | E138: -15.45 | F138: 0.2645290581 | G138: -4.82 | H138: 0.2645290581
A139: 131 | B139: 15.29 | C139: 539.2745384 | D139: 497.0566712 | E139: -15.35 | F139: 0.2665330661 | G139: -4.82 | H139: 0.2665330661
A140: 132 | B140: -1.99 | C140: 569.2765754 | D140: 476.9159585 | E140: -15.34 | F140: 0.2685370741 | G140: -4.82 | H140: 0.2685370741
A141: 133 | B141: -23.95 | C141: 577.1155771 | D141: 497.7274543 | E141: -15.29 | F141: 0.2705410822 | G141: -4.82 | H141: 0.2705410822
A142: 134 | B142: 0.03 | C142: 549.2711692 | D142: 512.4964367 | E142: -15.29 | F142: 0.2725450902 | G142: -4.82 | H142: 0.2725450902
A143: 135 | B143: 8.7 | C143: 579.9323223 | D143: 486.1989797 | E143: -15.26 | F143: 0.2745490982 | G143: -4.82 | H143: 0.2745490982
A144: 136 | B144: -6.17 | C144: 532.463211 | D144: 488.3482708 | E144: -15.26 | F144: 0.2765531062 | G144: -4.82 | H144: 0.2765531062
A145: 137 | B145: 39.78 | C145: 551.3524734 | D145: 484.0446387 | E145: -15.22 | F145: 0.2785571142 | G145: -4.82 | H145: 0.2785571142
A146: 138 | B146: -1.49 | C146: 549.4648782 | D146: 490.6296822 | E146: -15.17 | F146: 0.2805611222 | G146: -4.82 | H146: 0.2805611222
A147: 139 | B147: -26.57 | C147: 526.9945444 | D147: 496.3955728 | E147: -15.02 | F147: 0.2825651303 | G147: -4.82 | H147: 0.2825651303
A148: 140 | B148: 18.28 | C148: 546.1213739 | D148: 505.9530697 | E148: -14.93 | F148: 0.2845691383 | G148: -4.82 | H148: 0.2845691383
A149: 141 | B149: 10.96 | C149: 552.0740088 | D149: 481.9315048 | E149: -14.86 | F149: 0.2865731463 | G149: -4.82 | H149: 0.2865731463
A150: 142 | B150: -23.62 | C150: 564.713638 | D150: 500.5306391 | E150: -14.83 | F150: 0.2885771543 | G150: -4.82 | H150: 0.2885771543
A151: 143 | B151: 23.31 | C151: 568.8225217 | D151: 506.6662296 | E151: -14.83 | F151: 0.2905811623 | G151: -4.82 | H151: 0.2905811623
A152: 144 | B152: 7.06 | C152: 569.4118285 | D152: 501.1127426 | E152: -14.78 | F152: 0.2925851703 | G152: -4.82 | H152: 0.2925851703
A153: 145 | B153: -16.33 | C153: 553.5396982 | D153: 479.989014 | E153: -14.75 | F153: 0.2945891784 | G153: -4.82 | H153: 0.2945891784
A154: 146 | B154: 3.58 | C154: 548.0924973 | D154: 492.9566132 | E154: -14.47 | F154: 0.2965931864 | G154: -4.82 | H154: 0.2965931864
A155: 147 | B155: -31.85 | C155: 563.1956047 | D155: 504.7518342 | E155: -14.42 | F155: 0.2985971944 | G155: -4.82 | H155: 0.2985971944
A156: 148 | B156: -15.26 | C156: 536.8835746 | D156: 486.911372 | E156: -14.34 | F156: 0.3006012024 | G156: -4.82 | H156: 0.3006012024
A157: 149 | B157: -25.36 | C157: 535.1536882 | D157: 495.8009345 | E157: -14.27 | F157: 0.3026052104 | G157: -4.82 | H157: 0.3026052104
A158: 150 | B158: -31.99 | C158: 545.2872869 | D158: 495.700361 | E158: -14.23 | F158: 0.3046092184 | G158: -4.82 | H158: 0.3046092184
A159: 151 | B159: 5.35 | C159: 541.2756873 | D159: 484.0666655 | E159: -14.2 | F159: 0.3066132265 | G159: -4.82 | H159: 0.3066132265
A160: 152 | B160: 55.46 | C160: 559.8057507 | D160: 506.8200634 | E160: -13.71 | F160: 0.3086172345 | G160: -4.82 | H160: 0.3086172345
A161: 153 | B161: -4.86 | C161: 537.1131423 | D161: 502.1438585 | E161: -13.68 | F161: 0.3106212425 | G161: -4.82 | H161: 0.3106212425
A162: 154 | B162: -7.4 | C162: 581.4532893 | D162: 496.4781248 | E162: -13.64 | F162: 0.3126252505 | G162: -4.82 | H162: 0.3126252505
A163: 155 | B163: -8.29 | C163: 542.8971348 | D163: 496.9543775 | E163: -13.62 | F163: 0.3146292585 | G163: -4.82 | H163: 0.3146292585
A164: 156 | B164: -1.32 | C164: 542.7191305 | D164: 500.377604 | E164: -13.57 | F164: 0.3166332665 | G164: -4.82 | H164: 0.3166332665
A165: 157 | B165: -3.45 | C165: 545.352434 | D165: 493.9183461 | E165: -13.51 | F165: 0.3186372745 | G165: -4.82 | H165: 0.3186372745
A166: 158 | B166: 51.04 | C166: 558.6549093 | D166: 488.2619373 | E166: -13.29 | F166: 0.3206412826 | G166: -4.82 | H166: 0.3206412826
A167: 159 | B167: -29.33 | C167: 559.3494617 | D167: 491.8015643 | E167: -13.11 | F167: 0.3226452906 | G167: -4.82 | H167: 0.3226452906
A168: 160 | B168: -24.75 | C168: 551.0496461 | D168: 494.655163 | E168: -13.11 | F168: 0.3246492986 | G168: -4.82 | H168: 0.3246492986
A169: 161 | B169: -1.67 | C169: 546.0933479 | D169: 489.3973357 | E169: -13 | F169: 0.3266533066 | G169: -4.82 | H169: 0.3266533066
A170: 162 | B170: -18.17 | C170: 554.3947117 | D170: 496.1382169 | E170: -12.88 | F170: 0.3286573146 | G170: -4.82 | H170: 0.3286573146
A171: 163 | B171: -22.69 | C171: 560.1786632 | D171: 486.4995215 | E171: -12.49 | F171: 0.3306613226 | G171: -4.82 | H171: 0.3306613226
A172: 164 | B172: -13.68 | C172: 541.2792493 | D172: 489.2650138 | E172: -12.35 | F172: 0.3326653307 | G172: -4.82 | H172: 0.3326653307
A173: 165 | B173: 27.31 | C173: 562.452297 | D173: 485.803444 | E173: -12.27 | F173: 0.3346693387 | G173: -4.82 | H173: 0.3346693387
A174: 166 | B174: -26.92 | C174: 534.6723015 | D174: 483.2441551 | E174: -12.25 | F174: 0.3366733467 | G174: -4.82 | H174: 0.3366733467
A175: 167 | B175: 63.64 | C175: 529.7089232 | D175: 504.4556719 | E175: -12.12 | F175: 0.3386773547 | G175: -4.82 | H175: 0.3386773547
A176: 168 | B176: -16.71 | C176: 570.6201046 | D176: 501.4120224 | E176: -11.95 | F176: 0.3406813627 | G176: -4.82 | H176: 0.3406813627
A177: 169 | B177: -0.88 | C177: 547.5602713 | D177: 492.3908612 | E177: -11.94 | F177: 0.3426853707 | G177: -4.82 | H177: 0.3426853707
A178: 170 | B178: 9.4 | C178: 548.5589608 | D178: 491.8387775 | E178: -11.87 | F178: 0.3446893788 | G178: -4.82 | H178: 0.3446893788
A179: 171 | B179: -1.26 | C179: 551.1311437 | D179: 498.2310384 | E179: -11.71 | F179: 0.3466933868 | G179: -4.82 | H179: 0.3466933868
A180: 172 | B180: 4.13 | C180: 533.3895079 | D180: 482.8359186 | E180: -11.52 | F180: 0.3486973948 | G180: -4.82 | H180: 0.3486973948
A181: 173 | B181: -9.95 | C181: 559.4185306 | D181: 500.2521262 | E181: -11.38 | F181: 0.3507014028 | G181: -4.82 | H181: 0.3507014028
A182: 174 | B182: 5.18 | C182: 544.9772377 | D182: 502.2581402 | E182: -11.38 | F182: 0.3527054108 | G182: -4.82 | H182: 0.3527054108
A183: 175 | B183: -20.77 | C183: 527.4733083 | D183: 499.3687085 | E183: -11.38 | F183: 0.3547094188 | G183: -4.82 | H183: 0.3547094188
A184: 176 | B184: -1.13 | C184: 536.0563809 | D184: 490.9603721 | E184: -11.35 | F184: 0.3567134269 | G184: -4.82 | H184: 0.3567134269
A185: 177 | B185: 20.38 | C185: 539.6324312 | D185: 480.7537211 | E185: -11.33 | F185: 0.3587174349 | G185: -4.82 | H185: 0.3587174349
A186: 178 | B186: 7.89 | C186: 547.3415901 | D186: 495.8195625 | E186: -11.23 | F186: 0.3607214429 | G186: -4.82 | H186: 0.3607214429
A187: 179 | B187: 0.79 | C187: 554.6519052 | D187: 502.2785021 | E187: -11.22 | F187: 0.3627254509 | G187: -4.82 | H187: 0.3627254509
A188: 180 | B188: -23.56 | C188: 541.7627032 | D188: 482.6555501 | E188: -11.15 | F188: 0.3647294589 | G188: -4.82 | H188: 0.3647294589
A189: 181 | B189: -5.41 | C189: 576.2779126 | D189: 475.9443297 | E189: -11.08 | F189: 0.3667334669 | G189: -4.82 | H189: 0.3667334669
A190: 182 | B190: -2.02 | C190: 557.5398768 | D190: 489.264527 | E190: -10.97 | F190: 0.3687374749 | G190: -4.82 | H190: 0.3687374749
A191: 183 | B191: -7.56 | C191: 572.2274594 | D191: 474.9306457 | E191: -10.97 | F191: 0.370741483 | G191: -4.82 | H191: 0.370741483
A192: 184 | B192: -14.2 | C192: 552.508963 | D192: 482.6912421 | E192: -10.95 | F192: 0.372745491 | G192: -4.82 | H192: 0.372745491
A193: 185 | B193: -13.71 | C193: 557.4896267 | D193: 495.7372076 | E193: -10.94 | F193: 0.374749499 | G193: -4.82 | H193: 0.374749499
A194: 186 | B194: -5.9 | C194: 582.082531 | D194: 498.0423682 | E194: -10.89 | F194: 0.376753507 | G194: -4.82 | H194: 0.376753507
A195: 187 | B195: 95.79 | C195: 561.3705315 | D195: 498.1782749 | E195: -10.8 | F195: 0.378757515 | G195: -4.82 | H195: 0.378757515
A196: 188 | B196: 4.5 | C196: 562.9598567 | D196: 510.7794526 | E196: -10.63 | F196: 0.380761523 | G196: -4.82 | H196: 0.380761523
A197: 189 | B197: 19.68 | C197: 559.1641383 | D197: 499.0951675 | E197: -10.53 | F197: 0.3827655311 | G197: -4.82 | H197: 0.3827655311
A198: 190 | B198: -18.57 | C198: 529.2447712 | D198: 480.1888977 | E198: -10.52 | F198: 0.3847695391 | G198: -4.82 | H198: 0.3847695391
A199: 191 | B199: 11.32 | C199: 545.4994463 | D199: 490.0045414 | E199: -10.33 | F199: 0.3867735471 | G199: -4.82 | H199: 0.3867735471
A200: 192 | B200: 3.62 | C200: 547.916658 | D200: 488.3361834 | E200: -10.25 | F200: 0.3887775551 | G200: =G199 -> -4.82 | H200: 0.3887775551
... 318 more rows

Sheet ChkData
B6: =AVERAGE(B9:B508) -> 18.87894 | C6: =AVERAGE(C9:C508) -> 3.352616194 | D6: =AVERAGE(D9:D508) -> 553.1557866 | E6: 0.05157747518 | F6: 4.4979 | G6: 60.16532 | H6: 7.752068141 | I6: 81.39212 | J6: 60.10387167 | L6: 18.87894
B7: =MAX(B9:B508) -> 124.74 | C7: =MAX(C9:C508) -> 3.975390587 | D7: =MAX(D9:D508) -> 606.0692403 | E7: 0.1158553162 | F7: 5.06 | G7: 67.17 | H7: 11.97171833 | I7: 162.86 | J7: 138.9215739
B8: Sim | C8: ADG Crp | D8: End Wt | E8: PriceSlide | F8: Lbs Fed | G8: Cost/Hd | H8: Feed/Lb | I8: Value Diff
A9: 1 | B9: 29.04 | C9: 3.550856741 | D9: 569.2574919 | E9: 0.05136479787 | F9: 4.35 | G9: 63.57 | H9: 5.804592656 | I9: 58.66 | J9: 70.20678119 | L9: -17.24
A10: 2 | B10: 6.01 | C10: 3.433189318 | D10: 542.7242053 | E10: 0.06752162367 | F10: 4.87 | G10: 60.82 | H10: 6.702947606 | I10: 64.59 | J10: 70.27484338 | L10: -16.19
A11: 3 | B11: 54.24 | C11: 3.516304218 | D11: 541.6723665 | E11: 0.03761813854 | F11: 4.43 | G11: 57.21 | H11: 10.68857576 | I11: 104.18 | J11: 50.91055667 | L11: -14.29
A12: 4 | B12: 20.62 | C12: 3.348952376 | D12: 551.6265462 | E12: 0.05803675381 | F12: 4.61 | G12: 57.93 | H12: 7.404720864 | I12: 70.79 | J12: 86.42261891 | L12: -13.59
A13: 5 | B13: 20.63 | C13: 3.519108946 | D13: 547.7640395 | E13: 0.05774203764 | F13: 4.51 | G13: 63.22 | H13: 7.409357373 | I13: 94.25 | J13: 59.33935382 | L13: -13.11
A14: 6 | B14: 15.36 | C14: 3.465147869 | D14: 563.2708314 | E14: 0.04318519115 | F14: 4.73 | G14: 62.85 | H14: 9.072634264 | I14: 65.39 | J14: 49.30744922 | L14: -12.13
A15: 7 | B15: 9.14 | C15: 3.37810857 | D15: 555.1290864 | E15: 0 | F15: 4.65 | G15: 58.05 | H15: 8.396653999 | I15: 75.87 | J15: 61.78543396 | L15: -11.58
A16: 8 | B16: -13.59 | C16: 3.046153491 | D16: 562.5951232 | E16: 0 | F16: 4.37 | G16: 57.21 | H16: 8.709027566 | I16: 81.46 | J16: 79.88074739 | L16: -10.55
A17: 9 | B17: 52.63 | C17: 3.335300672 | D17: 536.6142808 | E17: 0.06020763871 | F17: 4.29 | G17: 58.41 | H17: 7.997969333 | I17: 77.45 | J17: 56.88241787 | L17: -10.3
A18: 10 | B18: 4.34 | C18: 3.269518426 | D18: 535.3809534 | E18: 0.05814954801 | F18: 4.76 | G18: 58.05 | H18: 6.489699392 | I18: 105.85 | J18: 46.49259725 | L18: -9.34
A19: 11 | B19: 5.96 | C19: 3.157358307 | D19: 549.661625 | E19: 0.02915975387 | F19: 4.43 | G19: 58.41 | H19: 2.764765725 | I19: 88.56 | J19: 60.36107337 | L19: -8.87
A20: 12 | B20: 41.68 | C20: 3.427064149 | D20: 563.9885881 | E20: 0.09750380804 | F20: 4.46 | G20: 60.09 | H20: 7.189334297 | I20: 78.8 | J20: 49.41733112 | L20: -8.83
A21: 13 | B21: 22.25 | C21: 3.275568955 | D21: 543.2436868 | E21: 0.05580549202 | F21: 4.38 | G21: 56.49 | H21: 7.034829328 | I21: 59.35 | J21: 48.76188383 | L21: -8.78
A22: 14 | B22: 16.56 | C22: 3.514023623 | D22: 551.0382765 | E22: 0 | F22: 4.66 | G22: 58.77 | H22: 8.416190896 | I22: 76.87 | J22: 53.20933373 | L22: -8.76
A23: 15 | B23: 24.78 | C23: 3.670982378 | D23: 545.015204 | E23: 0.04648982195 | F23: 4.22 | G23: 59.73 | H23: 9.366673217 | I23: 90.46 | J23: 92.38225127 | L23: -8.72
A24: 16 | B24: 27.17 | C24: 3.376022263 | D24: 549.6915852 | E24: 0.05604693411 | F24: 4.38 | G24: 62.85 | H24: 7.266075682 | I24: 109.3 | J24: 62.0412093 | L24: -8.7
A25: 17 | B25: 24.21 | C25: 3.387636301 | D25: 565.1944237 | E25: 0.04379262239 | F25: 4.61 | G25: 60.45 | H25: 10.16535609 | I25: 78.55 | J25: 54.62254663 | L25: -7.94
A26: 18 | B26: 26.48 | C26: 3.272762197 | D26: 563.3059482 | E26: 0.07734826064 | F26: 4.37 | G26: 56.13 | H26: 6.383066833 | I26: 124.4 | J26: 59.7514926 | L26: -7.51
A27: 19 | B27: -2.83 | C27: 3.198430168 | D27: 563.3360673 | E27: 0.04037167205 | F27: 4.48 | G27: 60.58 | H27: 7.795777603 | I27: 105.53 | J27: 73.28771564 | L27: -7.32
A28: 20 | B28: 16.95 | C28: 3.402446848 | D28: 557.7056277 | E28: 0.02864854653 | F28: 4.58 | G28: 61.41 | H28: 5.950235026 | I28: 54.89 | J28: 39.66238375 | L28: -7.21
A29: 21 | B29: 32.55 | C29: 3.452534432 | D29: 536.5885512 | E29: 0.02927081838 | F29: 4.41 | G29: 59.25 | H29: 6.892764242 | I29: 97.22 | J29: 51.60340985 | L29: -6.63
A30: 22 | B30: 8.89 | C30: 3.60895741 | D30: 558.4759161 | E30: 0.05230732476 | F30: 4.5 | G30: 60.21 | H30: 9.503897726 | I30: 84.87 | J30: 48.44854802 | L30: -6.54
A31: 23 | B31: 42.92 | C31: 3.440746259 | D31: 524.5788046 | E31: 0.07307196646 | F31: 4.66 | G31: 59.13 | H31: 7.819394305 | I31: 72.41 | J31: 52.42177929 | L31: -6.23
A32: 24 | B32: 83.84 | C32: 3.341191687 | D32: 557.9818714 | E32: 0.05416810906 | F32: 4.57 | G32: 58.05 | H32: 5.551301884 | I32: 85.6 | J32: 58.09986876 | L32: -6.19
A33: 25 | B33: 5.49 | C33: 3.255475074 | D33: 537.5191849 | E33: 0.05539748809 | F33: 4.48 | G33: 59.73 | H33: 7.812434023 | I33: 94.11 | J33: 43.20581432 | L33: -6.17
A34: 26 | B34: 44.51 | C34: 3.758753224 | D34: 549.3389428 | E34: 0.03584403885 | F34: 4.4 | G34: 58.29 | H34: 7.999354706 | I34: 51.71 | J34: 61.46207382 | L34: -6.01
A35: 27 | B35: -1.17 | C35: 3.255962437 | D35: 549.4904279 | E35: 0.0792034554 | F35: 4.11 | G35: 62.01 | H35: 7.512544435 | I35: 88.44 | J35: 53.71404767 | L35: -5.53
A36: 28 | B36: 3.01 | C36: 3.326126583 | D36: 566.9916608 | E36: 0.04355572265 | F36: 4.52 | G36: 57.33 | H36: 10.23681295 | I36: 87.44 | J36: 53.70553911 | L36: -5.35
A37: 29 | B37: -8.72 | C37: 3.294761993 | D37: 564.8025977 | E37: 0.04448331716 | F37: 4.61 | G37: 62.37 | H37: 5.989764952 | I37: 49.45 | J37: 61.57552597 | L37: -5.06
A38: 30 | B38: -8.78 | C38: 3.301082734 | D38: 550.886751 | E38: 0.06861115988 | F38: 4.64 | G38: 60.93 | H38: 10.01194075 | I38: 77.82 | J38: 72.61523942 | L38: -4.78
A39: 31 | B39: 22.82 | C39: 3.423693613 | D39: 571.3294347 | E39: 0.07017556976 | F39: 4.57 | G39: 59.61 | H39: 7.274084155 | I39: 114.11 | J39: 51.28486526 | L39: -4.69
A40: 32 | B40: 6.5 | C40: 3.352161226 | D40: 555.0604027 | E40: 0.05987731162 | F40: 4.43 | G40: 61.41 | H40: 9.604384196 | I40: 73.18 | J40: 54.44953275 | L40: -4.47
A41: 33 | B41: 25.62 | C41: 3.510323381 | D41: 571.1647587 | E41: 0.07412497843 | F41: 4.41 | G41: 56.97 | H41: 7.630309103 | I41: 65.68 | J41: 66.83835888 | L41: -4.32
A42: 34 | B42: 24.88 | C42: 3.573641232 | D42: 536.9210951 | E42: 0.04500486558 | F42: 4.49 | G42: 58.89 | H42: 7.405295483 | I42: 105.65 | J42: 40.69877639 | L42: -4.31
A43: 35 | B43: 19.34 | C43: 3.122393792 | D43: 549.9039514 | E43: 0.03035027128 | F43: 4.38 | G43: 61.53 | H43: 5.679862383 | I43: 78.16 | J43: 59.51279675 | L43: -4.16
A44: 36 | B44: 13.98 | C44: 3.333892117 | D44: 575.9035909 | E44: 0.06468406505 | F44: 4.7 | G44: 58.29 | H44: 7.915361941 | I44: 59.89 | J44: 60.48909395 | L44: -4.1
A45: 37 | B45: -1.05 | C45: 3.301339945 | D45: 562.8707988 | E45: 0.04132887789 | F45: 4.48 | G45: 59.97 | H45: 8.336467468 | I45: 66.6 | J45: 46.45565718 | L45: -3.7
A46: 38 | B46: 13.94 | C46: 3.404114668 | D46: 563.8844973 | E46: 0.03715707003 | F46: 4.41 | G46: 60.55 | H46: 7.283296714 | I46: 59.92 | J46: 64.33369898 | L46: -3.65
A47: 39 | B47: 24.9 | C47: 3.433484548 | D47: 565.0825478 | E47: 0.0386059025 | F47: 4.54 | G47: 61.05 | H47: 6.297898439 | I47: 149.03 | J47: 41.80807797 | L47: -3.19
A48: 40 | B48: 18.65 | C48: 3.157299825 | D48: 557.1333209 | E48: 0.0471139796 | F48: 4.06 | G48: 64.53 | H48: 7.02266999 | I48: 66.26 | J48: 56.94368109 | L48: -3.14
A49: 41 | B49: 9.78 | C49: 3.111333001 | D49: 570.9971813 | E49: 0.08665577894 | F49: 4.53 | G49: 60.93 | H49: 9.908603134 | I49: 45.81 | J49: 61.45988676 | L49: -2.83
A50: 42 | B50: 9.16 | C50: 3.482673954 | D50: 554.8824717 | E50: 0.06468695335 | F50: 4.56 | G50: 57.91 | H50: 6.103709877 | I50: 59.4 | J50: 62.82044998 | L50: -2.79
A51: 43 | B51: 22.68 | C51: 3.273380506 | D51: 563.2303603 | E51: 0.06658824276 | F51: 4.6 | G51: 60.79 | H51: 8.659778534 | I51: 92.21 | J51: 44.45989596 | L51: -2.64
A52: 44 | B52: -10.55 | C52: 3.351618607 | D52: 567.1356502 | E52: 0.04775259419 | F52: 4.37 | G52: 62.49 | H52: 8.673936872 | I52: 68.07 | J52: 66.43978824 | L52: -2.51
A53: 45 | B53: 24.56 | C53: 3.222780022 | D53: 550.4436094 | E53: 0 | F53: 4.23 | G53: 62.73 | H53: 6.073669976 | I53: 80.56 | J53: 56.2480804 | L53: -1.93
A54: 46 | B54: 15.35 | C54: 3.187423653 | D54: 536.8022474 | E54: 0.0899171544 | F54: 4.56 | G54: 59.49 | H54: 7.538787804 | I54: 96.61 | J54: 54.25128122 | L54: -1.93
A55: 47 | B55: 60.57 | C55: 3.446898559 | D55: 539.8919509 | E55: 0.03650328904 | F55: 4.51 | G55: 62.97 | H55: 6.847817243 | I55: 74.56 | J55: 45.42638139 | L55: -1.46
A56: 48 | B56: 7.57 | C56: 3.344414307 | D56: 532.8596025 | E56: 0.03392587438 | F56: 4.69 | G56: 60.21 | H56: 8.533434748 | I56: 52.87 | J56: 54.17601155 | L56: -1.38
A57: 49 | B57: 3.01 | C57: 3.219419912 | D57: 553.6320042 | E57: 0.04531815297 | F57: 4.33 | G57: 60.22 | H57: 10.8703112 | I57: 97.42 | J57: 75.99395271 | L57: -1.38
A58: 50 | B58: 9.68 | C58: 3.721594677 | D58: 535.5264161 | E58: 0.03975313418 | F58: 4.57 | G58: 59.37 | H58: 7.767159112 | I58: 87.7 | J58: 47.98629875 | L58: -1.17
A59: 51 | B59: 36.82 | C59: 3.251934745 | D59: 531.116525 | E59: 0.04409793367 | F59: 4.74 | G59: 56.25 | H59: 5.683209455 | I59: 86.83 | J59: 65.23870058 | L59: -1.05
A60: 52 | B60: 10.61 | C60: 3.266525328 | D60: 544.258456 | E60: 0.02862232993 | F60: 4.34 | G60: 59.13 | H60: 6.259419441 | I60: 56.18 | J60: 65.6342935 | L60: -1.05
A61: 53 | B61: 11.29 | C61: 3.299334886 | D61: 545.7898287 | E61: 0.04668477788 | F61: 4.52 | G61: 63.57 | H61: 4.4406666 | I61: 81.92 | J61: 74.70576595 | L61: -0.99
A62: 54 | B62: 34.27 | C62: 3.381087327 | D62: 573.6706204 | E62: 0 | F62: 4.27 | G62: 61.65 | H62: 9.461737945 | I62: 64.24 | J62: 72.04904726 | L62: -0.85
A63: 55 | B63: 40.19 | C63: 3.298642814 | D63: 524.4989796 | E63: 0.05685770996 | F63: 4.6 | G63: 58.53 | H63: 6.583694288 | I63: 57.36 | J63: 78.62554174 | L63: -0.63
A64: 56 | B64: 5.06 | C64: 3.350180248 | D64: 568.8267369 | E64: 0.06524016221 | F64: 4.59 | G64: 59.73 | H64: 6.2165611 | I64: 100.03 | J64: 64.05472183 | L64: -0.25
A65: 57 | B65: 4.12 | C65: 3.337879599 | D65: 559.8579661 | E65: 0.0939560343 | F65: 4.59 | G65: 59.25 | H65: 8.22047141 | I65: 87.36 | J65: 54.64177347 | L65: -0.17
A66: 58 | B66: 32.9 | C66: 3.059814095 | D66: 562.8209097 | E66: 0.09406277997 | F66: 4.49 | G66: 58.15 | H66: 10.38963872 | I66: 84.74 | J66: 47.96074075 | L66: -0.04
A67: 59 | B67: -5.06 | C67: 3.374643202 | D67: 542.8791379 | E67: 0.04189313526 | F67: 4.22 | G67: 59.61 | H67: 8.12413117 | I67: 72.37 | J67: 62.45280135 | L67: 0.03
A68: 60 | B68: 19.52 | C68: 3.469826922 | D68: 548.2706343 | E68: 0.05542733378 | F68: 4.36 | G68: 58.29 | H68: 7.384874461 | I68: 135.89 | J68: 57.07966266 | L68: 0.15
A69: 61 | B69: 33 | C69: 3.212269372 | D69: 557.9561887 | E69: 0.0467001202 | F69: 4.6 | G69: 57.93 | H69: 8.300445422 | I69: 107.2 | J69: 74.05657836 | L69: 0.22
A70: 62 | B70: 6.87 | C70: 3.401696266 | D70: 532.8966816 | E70: 0.06576182198 | F70: 4.37 | G70: 59.97 | H70: 11.97171833 | I70: 70.89 | J70: 76.78751554 | L70: 0.27
A71: 63 | B71: 15.64 | C71: 3.346920161 | D71: 551.2190674 | E71: 0.0661709809 | F71: 4.69 | G71: 55.41 | H71: 8.995899238 | I71: 125.08 | J71: 93.43180172 | L71: 0.33
A72: 64 | B72: 38.09 | C72: 3.621442235 | D72: 597.944581 | E72: 0.03589898209 | F72: 4.76 | G72: 61.77 | H72: 6.641879097 | I72: 103.49 | J72: 91.2217238 | L72: 0.33
A73: 65 | B73: -1.93 | C73: 3.343598234 | D73: 558.2708768 | E73: 0.04664746427 | F73: 4.26 | G73: 61.29 | H73: 8.116619175 | I73: 62.23 | J73: 60.08312042 | L73: 0.39
A74: 66 | B74: 7.59 | C74: 3.292466759 | D74: 542.3117401 | E74: 0.04500444097 | F74: 4.48 | G74: 60.45 | H74: 6.515460636 | I74: 86.89 | J74: 59.90190217 | L74: 0.49
A75: 67 | B75: -4.32 | C75: 3.079846226 | D75: 561.0521671 | E75: 0.05132957971 | F75: 4.37 | G75: 61.77 | H75: 9.328446061 | I75: 94.33 | J75: 88.94853701 | L75: 0.53
A76: 68 | B76: 25.36 | C76: 3.438993088 | D76: 538.454875 | E76: 0 | F76: 4.3 | G76: 54.33 | H76: 9.193227481 | I76: 61.73 | J76: 54.82905191 | L76: 0.64
A77: 69 | B77: 44.98 | C77: 3.197215274 | D77: 546.8310993 | E77: 0.07737020842 | F77: 4.67 | G77: 61.29 | H77: 9.021118638 | I77: 120.32 | J77: 56.50115904 | L77: 0.81
A78: 70 | B78: 8 | C78: 3.17098966 | D78: 549.9348472 | E78: 0.05241629173 | F78: 4.52 | G78: 62.38 | H78: 8.05577541 | I78: 103.33 | J78: 43.64987033 | L78: 1.23
A79: 71 | B79: 12.27 | C79: 3.320685278 | D79: 552.0784891 | E79: 0.04240932662 | F79: 4.64 | G79: 58.65 | H79: 7.665547501 | I79: 109.66 | J79: 54.65445188 | L79: 1.23
A80: 72 | B80: 22.29 | C80: 3.002835328 | D80: 572.2832265 | E80: 0.06808861174 | F80: 4.3 | G80: 56.61 | H80: 4.657475516 | I80: 75.65 | J80: 55.22626476 | L80: 1.28
A81: 73 | B81: 6.42 | C81: 3.308064667 | D81: 558.6446742 | E81: 0.04404622073 | F81: 4.29 | G81: 60.57 | H81: 5.799167902 | I81: 84.18 | J81: 79.90817362 | L81: 1.39
A82: 74 | B82: 1.23 | C82: 3.455585659 | D82: 559.1194891 | E82: 0.05323198062 | F82: 4.47 | G82: 60.22 | H82: 5.736941251 | I82: 96.92 | J82: 56.27532716 | L82: 1.41
A83: 75 | B83: 20.89 | C83: 3.382274612 | D83: 553.914381 | E83: 0.0756759085 | F83: 4.62 | G83: 62.61 | H83: 10.47507007 | I83: 62.66 | J83: 47.06022481 | L83: 1.77
A84: 76 | B84: 21.84 | C84: 3.745711666 | D84: 566.9339944 | E84: 0.05763645744 | F84: 4.63 | G84: 59.61 | H84: 6.446106086 | I84: 64.79 | J84: 58.47633109 | L84: 2
A85: 77 | B85: -2.64 | C85: 3.273930786 | D85: 558.6136327 | E85: 0.06302461171 | F85: 4.64 | G85: 59.97 | H85: 7.37027556 | I85: 64.35 | J85: 95.49192082 | L85: 2.34
A86: 78 | B86: 12.53 | C86: 3.236795457 | D86: 554.7632179 | E86: 0.0507062736 | F86: 4.66 | G86: 61.89 | H86: 8.613973852 | I86: 108.05 | J86: 72.20514008 | L86: 2.51
A87: 79 | B87: 16.27 | C87: 3.314004928 | D87: 541.1224973 | E87: 0.04400484103 | F87: 4.56 | G87: 60.09 | H87: 8.035658548 | I87: 66.56 | J87: 70.7909709 | L87: 2.55
A88: 80 | B88: 33.62 | C88: 3.084672058 | D88: 559.8968087 | E88: 0.0451942112 | F88: 4.16 | G88: 60.69 | H88: 7.902118474 | I88: 82.66 | J88: 46.73012576 | L88: 2.71
A89: 81 | B89: 10.59 | C89: 3.340315965 | D89: 551.3267869 | E89: 0.05702588656 | F89: 4.45 | G89: 62.13 | H89: 7.929228657 | I89: 78.03 | J89: 70.69750404 | L89: 2.85
A90: 82 | B90: 12.5 | C90: 3.147208728 | D90: 548.0832544 | E90: 0.03555284057 | F90: 4.56 | G90: 61.65 | H90: 5.053176869 | I90: 123.19 | J90: 74.5878506 | L90: 2.9
A91: 83 | B91: 21.11 | C91: 3.233879043 | D91: 557.1018818 | E91: 0.04255940227 | F91: 4.55 | G91: 62.97 | H91: 5.839249848 | I91: 74.24 | J91: 45.3912941 | L91: 2.91
A92: 84 | B92: 31.71 | C92: 3.415194621 | D92: 556.2546244 | E92: 0.06579738974 | F92: 4.76 | G92: 59.85 | H92: 6.643801557 | I92: 75.18 | J92: 49.69311952 | L92: 2.93
A93: 85 | B93: 0.33 | C93: 3.452979129 | D93: 550.4676787 | E93: 0.02837372968 | F93: 4.24 | G93: 60.21 | H93: 6.994878037 | I93: 71.08 | J93: 53.47763351 | L93: 2.96
A94: 86 | B94: 10.98 | C94: 3.385077222 | D94: 535.9419701 | E94: 0.03490405295 | F94: 4.29 | G94: 57.69 | H94: 6.103216006 | I94: 43.99 | J94: 60.94847585 | L94: 2.97
A95: 87 | B95: -4.31 | C95: 3.203744443 | D95: 539.4995884 | E95: 0.06116386651 | F95: 4.68 | G95: 60.45 | H95: 6.817503425 | I95: 56.66 | J95: 58.62804687 | L95: 3.01
A96: 88 | B96: -3.19 | C96: 3.326910181 | D96: 552.4744168 | E96: 0.08157991306 | F96: 4.55 | G96: 62.85 | H96: 5.239823413 | I96: 73.97 | J96: 53.44059837 | L96: 3.01
A97: 89 | B97: 29.99 | C97: 3.66573581 | D97: 529.80008 | E97: 0.07948254185 | F97: 4.32 | G97: 64.05 | H97: 9.375542458 | I97: 62.79 | J97: 53.08411858 | L97: 3.14
A98: 90 | B98: -7.21 | C98: 3.541488884 | D98: 547.7663627 | E98: 0.04769698978 | F98: 4.5 | G98: 60.81 | H98: 7.379337644 | I98: 103.95 | J98: 60.00011859 | L98: 3.43
A99: 91 | B99: 2 | C99: 3.24890404 | D99: 549.1916774 | E99: 0 | F99: 4.47 | G99: 60.09 | H99: 8.211978098 | I99: 77.02 | J99: 64.31937053 | L99: 3.46
A100: 92 | B100: 27.54 | C100: 3.404918161 | D100: 565.3886008 | E100: 0 | F100: 4.39 | G100: 60.57 | H100: 10.33256311 | I100: 67.49 | J100: 71.88451021 | L100: 3.58
A101: 93 | B101: 32.92 | C101: 3.429580479 | D101: 557.4226617 | E101: 0.04232072372 | F101: 4.59 | G101: 59.13 | H101: 6.331758818 | I101: 73.6 | J101: 74.38112796 | L101: 3.75
A102: 94 | B102: 29.2 | C102: 3.184218029 | D102: 545.0561299 | E102: 0.04416124199 | F102: 4.69 | G102: 61.65 | H102: 6.34511951 | I102: 125.67 | J102: 60.32006995 | L102: 3.76
A103: 95 | B103: 25.55 | C103: 3.412289456 | D103: 561.5124439 | E103: 0.05325892015 | F103: 4.87 | G103: 61.65 | H103: 8.150385003 | I103: 83.09 | J103: 62.91003833 | L103: 3.93
A104: 96 | B104: 24.95 | C104: 3.49541818 | D104: 558.1576037 | E104: 0.05770207878 | F104: 4.63 | G104: 60.57 | H104: 7.366424544 | I104: 103.83 | J104: 92.35767073 | L104: 3.96
A105: 97 | B105: 6.75 | C105: 3.424145972 | D105: 525.1091061 | E105: 0.03732947449 | F105: 4.68 | G105: 61.77 | H105: 7.439660228 | I105: 62.16 | J105: 68.79172753 | L105: 4
A106: 98 | B106: 2.51 | C106: 3.221078928 | D106: 550.0259529 | E106: 0.1089031201 | F106: 4.52 | G106: 59.49 | H106: 8.401186941 | I106: 99.66 | J106: 53.44715234 | L106: 4.01
A107: 99 | B107: 35.36 | C107: 3.462474743 | D107: 545.5537329 | E107: 0.07369808834 | F107: 4.54 | G107: 64.66 | H107: 7.178554969 | I107: 77.55 | J107: 48.6662322 | L107: 4.04
A108: 100 | B108: 1.23 | C108: 3.345500957 | D108: 565.3092606 | E108: 0.04548618897 | F108: 4.24 | G108: 59.11 | H108: 8.227573732 | I108: 96.39 | J108: 63.46812604 | L108: 4.05
A109: 101 | B109: 5.11 | C109: 3.270532343 | D109: 548.9314378 | E109: 0.03345229134 | F109: 4.74 | G109: 57.09 | H109: 8.331369859 | I109: 61.96 | J109: 63.79394691 | L109: 4.06
A110: 102 | B110: 4.01 | C110: 3.271305687 | D110: 540.398874 | E110: 0 | F110: 4.71 | G110: 61.65 | H110: 7.38904879 | I110: 75.01 | J110: 44.53547251 | L110: 4.09
A111: 103 | B111: 12.61 | C111: 3.473692968 | D111: 595.0043955 | E111: 0.04089070241 | F111: 4.58 | G111: 61.53 | H111: 8.281572618 | I111: 89.82 | J111: 66.52831264 | L111: 4.12
A112: 104 | B112: 24.96 | C112: 3.134658863 | D112: 566.0174465 | E112: 0.03848800569 | F112: 4.81 | G112: 58.41 | H112: 7.825247126 | I112: 89.16 | J112: 51.84286081 | L112: 4.13
A113: 105 | B113: 9.32 | C113: 3.335736411 | D113: 554.3137886 | E113: 0.03879544395 | F113: 4.56 | G113: 62.49 | H113: 8.126731609 | I113: 68.51 | J113: 59.64964955 | L113: 4.13
A114: 106 | B114: 28.63 | C114: 3.362329487 | D114: 562.5940687 | E114: 0.03864526741 | F114: 4.25 | G114: 60.09 | H114: 8.508050578 | I114: 89.18 | J114: 51.39639462 | L114: 4.34
A115: 107 | B115: -6.17 | C115: 3.593046603 | D115: 553.369811 | E115: 0.07168137855 | F115: 4.48 | G115: 58.99 | H115: 7.462990736 | I115: 71.94 | J115: 57.81766658 | L115: 4.38
A116: 108 | B116: 7.4 | C116: 3.211626036 | D116: 530.5663909 | E116: 0.04656328377 | F116: 4.71 | G116: 57.09 | H116: 8.824604193 | I116: 63.64 | J116: 76.64189348 | L116: 4.49
A117: 109 | B117: 17.82 | C117: 3.038402254 | D117: 554.3999864 | E117: 0.03275856383 | F117: 4.63 | G117: 60.21 | H117: 7.306714547 | I117: 69.55 | J117: 57.97670029 | L117: 4.68
A118: 110 | B118: 24.01 | C118: 3.110173718 | D118: 536.720441 | E118: 0 | F118: 4.56 | G118: 60.33 | H118: 6.257013415 | I118: 68.35 | J118: 55.18040501 | L118: 4.84
A119: 111 | B119: 30.64 | C119: 3.400068702 | D119: 556.0362812 | E119: 0.06214879662 | F119: 4.47 | G119: 60.33 | H119: 5.254219459 | I119: 118.1 | J119: 66.31085023 | L119: 4.93
A120: 112 | B120: 22.35 | C120: 3.173527532 | D120: 587.3392946 | E120: 0 | F120: 4.58 | G120: 58.41 | H120: 7.864032156 | I120: 77.27 | J120: 64.80636491 | L120: 4.97
A121: 113 | B121: 2.55 | C121: 3.203306296 | D121: 523.9764185 | E121: 0.05193120439 | F121: 4.43 | G121: 61.53 | H121: 7.071316043 | I121: 67.63 | J121: 52.71721493 | L121: 5.06
A122: 114 | B122: 48 | C122: 3.487054345 | D122: 564.0257428 | E122: 0.05793494495 | F122: 4.45 | G122: 60.33 | H122: 10.27268682 | I122: 83.21 | J122: 71.44076393 | L122: 5.11
A123: 115 | B123: 10.31 | C123: 3.628628054 | D123: 553.0922206 | E123: 0.06643021098 | F123: 4.52 | G123: 60.33 | H123: 7.687541074 | I123: 69.14 | J123: 43.96772357 | L123: 5.21
A124: 116 | B124: 13.59 | C124: 3.412756645 | D124: 549.2304866 | E124: 0.08577790985 | F124: 4.39 | G124: 54.57 | H124: 6.580768814 | I124: 80.3 | J124: 53.10612331 | L124: 5.49
A125: 117 | B125: 22.09 | C125: 3.213484924 | D125: 561.8761037 | E125: 0.07325633622 | F125: 4.47 | G125: 59.62 | H125: 7.972450087 | I125: 97.43 | J125: 57.82247044 | L125: 5.63
A126: 118 | B126: 26.56 | C126: 3.37244395 | D126: 543.9016381 | E126: 0.04319394775 | F126: 4.42 | G126: 61.65 | H126: 7.305474523 | I126: 70.69 | J126: 65.42900057 | L126: 5.74
A127: 119 | B127: 51.17 | C127: 3.78024958 | D127: 537.2779999 | E127: 0.06616595003 | F127: 4.68 | G127: 59.47 | H127: 10.00365155 | I127: 69.42 | J127: 55.27558402 | L127: 5.77
A128: 120 | B128: 32.68 | C128: 3.316893921 | D128: 573.6457859 | E128: 0.0906940342 | F128: 4.38 | G128: 59.49 | H128: 6.657066554 | I128: 70.1 | J128: 57.29688786 | L128: 5.78
A129: 121 | B129: 4.13 | C129: 3.249186446 | D129: 551.7472769 | E129: 0 | F129: 4.63 | G129: 59.25 | H129: 6.373967127 | I129: 64.02 | J129: 49.8482009 | L129: 5.81
A130: 122 | B130: 29.12 | C130: 3.785202239 | D130: 583.7325653 | E130: 0.03838376352 | F130: 4.35 | G130: 59.47 | H130: 8.098693161 | I130: 68.61 | J130: 62.62448529 | L130: 5.81
A131: 123 | B131: 20.8 | C131: 3.540523698 | D131: 556.0435863 | E131: 0.03452231952 | F131: 4.62 | G131: 59.49 | H131: 9.853800356 | I131: 64.48 | J131: 50.75171043 | L131: 5.96
A132: 124 | B132: 52.76 | C132: 3.827894683 | D132: 574.4480493 | E132: 0.06872938051 | F132: 4.25 | G132: 57.09 | H132: 7.96041712 | I132: 80.9 | J132: 55.532641 | L132: 6.01
A133: 125 | B133: 4.06 | C133: 3.288588061 | D133: 548.4294499 | E133: 0.05768895796 | F133: 4.32 | G133: 60.09 | H133: 9.009012326 | I133: 124.17 | J133: 61.45023701 | L133: 6.06
A134: 126 | B134: 66.06 | C134: 3.548516682 | D134: 549.2587896 | E134: 0.06436132047 | F134: 4.38 | G134: 56.01 | H134: 8.984434624 | I134: 83.83 | J134: 41.85970809 | L134: 6.25
A135: 127 | B135: 34.05 | C135: 3.455793917 | D135: 529.6287254 | E135: 0 | F135: 4.21 | G135: 62.01 | H135: 8.333966597 | I135: 62.25 | J135: 53.41048379 | L135: 6.32
A136: 128 | B136: 22.32 | C136: 3.415765488 | D136: 546.0354937 | E136: 0.03621519636 | F136: 4.53 | G136: 56.25 | H136: 7.120352355 | I136: 96.97 | J136: 71.47384885 | L136: 6.36
A137: 129 | B137: 9.23 | C137: 3.518167773 | D137: 568.1222309 | E137: 0.07855819501 | F137: 4.45 | G137: 57.81 | H137: 7.626322966 | I137: 126.08 | J137: 59.81038402 | L137: 6.4
A138: 130 | B138: 40.39 | C138: 3.613512659 | D138: 561.2884766 | E138: 0.0488851093 | F138: 4.29 | G138: 60.33 | H138: 7.959257913 | I138: 108.45 | J138: 51.87726046 | L138: 6.42
A139: 131 | B139: 8 | C139: 3.504011313 | D139: 569.0002902 | E139: 0.03885555204 | F139: 4.6 | G139: 59.95 | H139: 9.460403709 | I139: 88.66 | J139: 61.64852043 | L139: 6.44
A140: 132 | B140: 3.14 | C140: 3.196151395 | D140: 536.8843794 | E140: 0.04008252386 | F140: 4.43 | G140: 58.41 | H140: 6.143796103 | I140: 83.42 | J140: 68.59989907 | L140: 6.5
A141: 133 | B141: 21.82 | C141: 3.242388468 | D141: 533.6288661 | E141: 0.04271323523 | F141: 4.84 | G141: 60.57 | H141: 7.635385048 | I141: 62.89 | J141: 67.37810252 | L141: 6.59
A142: 134 | B142: 24.91 | C142: 3.498810839 | D142: 565.8868708 | E142: 0.0363909847 | F142: 4.44 | G142: 56.61 | H142: 10.95499546 | I142: 77.18 | J142: 67.6956926 | L142: 6.75
A143: 135 | B143: 17.62 | C143: 3.384452352 | D143: 558.4530156 | E143: 0.05261913875 | F143: 4.37 | G143: 61.29 | H143: 7.017027864 | I143: 59.17 | J143: 88.56606916 | L143: 6.87
A144: 136 | B144: 7.21 | C144: 3.427386499 | D144: 569.6238758 | E144: 0.03806687538 | F144: 4.39 | G144: 59.25 | H144: 8.155005021 | I144: 95.52 | J144: 62.58062801 | L144: 6.9
A145: 137 | B145: 26.15 | C145: 3.663803458 | D145: 539.7870509 | E145: 0.04037805735 | F145: 4.52 | G145: 59.85 | H145: 6.71650431 | I145: 71.62 | J145: 43.2043149 | L145: 6.91
A146: 138 | B146: 47.92 | C146: 3.263746717 | D146: 534.8470794 | E146: 0.07779366279 | F146: 4.7 | G146: 62.01 | H146: 7.526489108 | I146: 75.02 | J146: 69.57487845 | L146: 7.04
A147: 139 | B147: 28.96 | C147: 3.569778578 | D147: 559.6176205 | E147: 0.03706789768 | F147: 4.49 | G147: 62.37 | H147: 6.325429216 | I147: 74.28 | J147: 64.453496 | L147: 7.11
A148: 140 | B148: 55.9 | C148: 3.452973328 | D148: 550.1293328 | E148: 0.04085894665 | F148: 4.31 | G148: 61.89 | H148: 6.626213917 | I148: 109.72 | J148: 55.52206358 | L148: 7.21
A149: 141 | B149: 9.36 | C149: 3.313356621 | D149: 542.6667083 | E149: 0.0432605124 | F149: 4.51 | G149: 63.22 | H149: 7.836798142 | I149: 95.47 | J149: 59.70132543 | L149: 7.21
A150: 142 | B150: 25.76 | C150: 3.53102405 | D150: 566.9574256 | E150: 0.04269634599 | F150: 4.49 | G150: 59.37 | H150: 8.522216815 | I150: 64.06 | J150: 59.30464013 | L150: 7.26
A151: 143 | B151: 48.99 | C151: 3.258228209 | D151: 547.2072967 | E151: 0.06931121567 | F151: 4.36 | G151: 59.49 | H151: 5.797105628 | I151: 78.23 | J151: 56.26464566 | L151: 7.29
A152: 144 | B152: -17.24 | C152: 3.522752532 | D152: 554.0100188 | E152: 0.05236397451 | F152: 4.43 | G152: 61.53 | H152: 8.59481774 | I152: 44.44 | J152: 57.45246884 | L152: 7.36
A153: 145 | B153: 3.58 | C153: 3.563398426 | D153: 574.0670462 | E153: 0.05539210549 | F153: 4.69 | G153: 58.54 | H153: 7.11897016 | I153: 70.33 | J153: 62.86440677 | L153: 7.4
A154: 146 | B154: 61.97 | C154: 3.323063627 | D154: 561.2232127 | E154: 0.04155964607 | F154: 4.64 | G154: 58.89 | H154: 8.644915021 | I154: 99.41 | J154: 65.52884419 | L154: 7.57
A155: 147 | B155: 7.36 | C155: 3.247806888 | D155: 553.3464654 | E155: 0.05067467498 | F155: 4.25 | G155: 58.53 | H155: 10.38298127 | I155: 71.47 | J155: 122.5956172 | L155: 7.59
A156: 148 | B156: 32.23 | C156: 3.441790787 | D156: 545.8619245 | E156: 0.05748251106 | F156: 4.46 | G156: 57.93 | H156: 5.148289539 | I156: 65.84 | J156: 65.3764043 | L156: 7.72
A157: 149 | B157: 36 | C157: 3.433121278 | D157: 539.2961945 | E157: 0.05950753263 | F157: 4.86 | G157: 60.33 | H157: 5.637550162 | I157: 71.37 | J157: 61.12442238 | L157: 8
A158: 150 | B158: 8.93 | C158: 3.419411526 | D158: 538.4943025 | E158: 0.06430611432 | F158: 4.5 | G158: 60.09 | H158: 6.987141459 | I158: 100.26 | J158: 77.74136834 | L158: 8
A159: 151 | B159: 14.64 | C159: 3.225339673 | D159: 519.2124393 | E159: 0.0451894419 | F159: 4.45 | G159: 58.77 | H159: 7.820013533 | I159: 96.85 | J159: 68.09516836 | L159: 8.08
A160: 152 | B160: 19.88 | C160: 3.316460371 | D160: 553.534127 | E160: 0.05305214545 | F160: 4.34 | G160: 62.13 | H160: 7.543759256 | I160: 70.95 | J160: 55.81500771 | L160: 8.22
A161: 153 | B161: 21.34 | C161: 3.183261235 | D161: 553.9512803 | E161: 0.05317157115 | F161: 4.73 | G161: 62.01 | H161: 9.332777777 | I161: 49.08 | J161: 58.59253463 | L161: 8.25
A162: 154 | B162: 48.35 | C162: 3.27883019 | D162: 532.5381846 | E162: 0.03672903901 | F162: 4.6 | G162: 58.65 | H162: 4.956174949 | I162: 50.67 | J162: 72.42102912 | L162: 8.28
A163: 155 | B163: 22.46 | C163: 3.330239819 | D163: 536.0853415 | E163: 0.05259016023 | F163: 4.62 | G163: 58.65 | H163: 7.532413791 | I163: 109.74 | J163: 39.55030835 | L163: 8.8
A164: 156 | B164: 5.81 | C164: 3.500103529 | D164: 526.6530045 | E164: 0.07057105157 | F164: 4.43 | G164: 59.25 | H164: 6.406329165 | I164: 83.83 | J164: 66.37312118 | L164: 8.89
A165: 157 | B165: 13.8 | C165: 3.544413347 | D165: 558.4874109 | E165: 0.04202411982 | F165: 4.35 | G165: 59.47 | H165: 7.351242388 | I165: 64.09 | J165: 57.48917329 | L165: 8.93
A166: 158 | B166: 70.66 | C166: 3.236744807 | D166: 544.7632932 | E166: 0.05959891694 | F166: 4.4 | G166: 60.69 | H166: 7.786454006 | I166: 75.3 | J166: 65.76473767 | L166: 8.98
A167: 159 | B167: 6.91 | C167: 3.253316131 | D167: 579.0988709 | E167: 0.04220923906 | F167: 4.68 | G167: 59.97 | H167: 7.438215704 | I167: 85.46 | J167: 57.37881881 | L167: 9.07
A168: 160 | B168: 38.9 | C168: 3.395737794 | D168: 540.6505866 | E168: 0.03643648258 | F168: 4.23 | G168: 61.41 | H168: 6.918191747 | I168: 78.19 | J168: 70.21315115 | L168: 9.14
A169: 161 | B169: 4.97 | C169: 3.379171885 | D169: 561.7501933 | E169: 0.07336080345 | F169: 4.19 | G169: 61.05 | H169: 8.720296533 | I169: 89.36 | J169: 54.91994693 | L169: 9.16
A170: 162 | B170: 23.63 | C170: 3.109703188 | D170: 548.3230789 | E170: 0.04356542863 | F170: 4.33 | G170: 61.17 | H170: 7.039116413 | I170: 69.26 | J170: 52.8307302 | L170: 9.22
A171: 163 | B171: -0.04 | C171: 3.281121587 | D171: 566.6373508 | E171: 0 | F171: 4.68 | G171: 57.91 | H171: 7.377368428 | I171: 92.95 | J171: 78.65226049 | L171: 9.23
A172: 164 | B172: 15.74 | C172: 3.431107487 | D172: 553.7905248 | E172: 0.04644890892 | F172: 4.42 | G172: 60.57 | H172: 10.21919996 | I172: 75.63 | J172: 54.70285214 | L172: 9.25
A173: 165 | B173: 22.61 | C173: 3.217537459 | D173: 540.7959945 | E173: 0 | F173: 4.71 | G173: 58.41 | H173: 9.13527344 | I173: 81.22 | J173: 60.3026643 | L173: 9.32
A174: 166 | B174: 8.28 | C174: 3.371488183 | D174: 554.9968875 | E174: 0.03927302183 | F174: 4.35 | G174: 60.33 | H174: 7.12583836 | I174: 91.49 | J174: 76.03680027 | L174: 9.36
A175: 167 | B175: 3.75 | C175: 3.165974067 | D175: 542.044439 | E175: 0 | F175: 4.45 | G175: 58.29 | H175: 8.475964649 | I175: 73.23 | J175: 57.89757775 | L175: 9.38
A176: 168 | B176: 24.12 | C176: 3.271454504 | D176: 545.4479032 | E176: 0.04653590454 | F176: 4.81 | G176: 59.37 | H176: 6.830352524 | I176: 80.81 | J176: 75.12100902 | L176: 9.45
A177: 169 | B177: 55 | C177: 3.352304371 | D177: 535.4378139 | E177: 0.03584090717 | F177: 4.41 | G177: 59.97 | H177: 7.054707204 | I177: 75.1 | J177: 48.14186616 | L177: 9.5
A178: 170 | B178: 4.05 | C178: 3.292431879 | D178: 562.1780191 | E178: 0.05405125531 | F178: 4.41 | G178: 60.57 | H178: 9.528543256 | I178: 58.76 | J178: 45.80449237 | L178: 9.52
A179: 171 | B179: 28.92 | C179: 3.270605928 | D179: 554.5612621 | E179: 0.04975135944 | F179: 4.22 | G179: 58.53 | H179: 7.875275639 | I179: 80.64 | J179: 66.14801461 | L179: 9.58
A180: 172 | B180: 31.82 | C180: 3.276107017 | D180: 557.8850308 | E180: 0.03426512648 | F180: 4.29 | G180: 57.57 | H180: 5.560443272 | I180: 79.82 | J180: 53.64599194 | L180: 9.64
A181: 173 | B181: 11.23 | C181: 3.413802595 | D181: 549.4138416 | E181: 0.07728908347 | F181: 4.62 | G181: 59.37 | H181: 7.418963171 | I181: 72.32 | J181: 48.19394844 | L181: 9.68
A182: 174 | B182: 9.25 | C182: 3.308463182 | D182: 558.6126286 | E182: 0.05147927742 | F182: 4.63 | G182: 58.41 | H182: 5.441688133 | I182: 74.9 | J182: 68.38299092 | L182: 9.78
A183: 175 | B183: -1.46 | C183: 3.374093047 | D183: 556.2180525 | E183: 0.04912385242 | F183: 4.57 | G183: 58.41 | H183: 8.404647174 | I183: 54.71 | J183: 45.20634354 | L183: 9.79
A184: 176 | B184: 12.21 | C184: 3.267825307 | D184: 572.7135624 | E184: 0.03444091957 | F184: 4.58 | G184: 62.47 | H184: 8.034483983 | I184: 76.05 | J184: 66.06497527 | L184: 9.99
A185: 177 | B185: 53.94 | C185: 3.445327314 | D185: 538.3514178 | E185: 0.06389046734 | F185: 4.48 | G185: 59.49 | H185: 10.42808179 | I185: 61.72 | J185: 59.83469681 | L185: 10.07
A186: 178 | B186: 12.16 | C186: 3.388181546 | D186: 537.9893212 | E186: 0.04654166713 | F186: 4.6 | G186: 60.93 | H186: 6.904529206 | I186: 62.63 | J186: 60.27338094 | L186: 10.16
A187: 179 | B187: 15.17 | C187: 3.581339485 | D187: 551.4224252 | E187: 0.04840749886 | F187: 4.31 | G187: 58.18 | H187: 6.979308006 | I187: 61.85 | J187: 60.2091498 | L187: 10.16
A188: 180 | B188: 11.97 | C188: 3.412362595 | D188: 548.8415268 | E188: 0.04231452026 | F188: 4.47 | G188: 61.05 | H188: 10.97382733 | I188: 91.26 | J188: 46.38592476 | L188: 10.31
A189: 181 | B189: 48.46 | C189: 3.21995409 | D189: 557.0712738 | E189: 0.03956547538 | F189: 4.41 | G189: 60.57 | H189: 8.97663402 | I189: 117.03 | J189: 50.92543372 | L189: 10.39
A190: 182 | B190: 16.45 | C190: 3.334771248 | D190: 550.4869723 | E190: 0.06776233849 | F190: 4.48 | G190: 61.89 | H190: 5.86946491 | I190: 44.73 | J190: 57.50285013 | L190: 10.47
A191: 183 | B191: 0.64 | C191: 3.548433059 | D191: 537.6758301 | E191: 0.08268395905 | F191: 4.42 | G191: 57.57 | H191: 6.920248311 | I191: 93.47 | J191: 44.70060913 | L191: 10.59
A192: 184 | B192: 10.16 | C192: 3.653421731 | D192: 554.2047125 | E192: 0.08558514208 | F192: 4.46 | G192: 61.05 | H192: 8.368997918 | I192: 56.32 | J192: 53.48830688 | L192: 10.61
A193: 185 | B193: 11 | C193: 3.273637367 | D193: 559.6147316 | E193: 0.04811248982 | F193: 4.46 | G193: 58.53 | H193: 10.68015268 | I193: 80.98 | J193: 81.23601722 | L193: 10.88
A194: 186 | B194: 32.46 | C194: 3.395271933 | D194: 556.2546618 | E194: 0.02880206625 | F194: 4.27 | G194: 60.67 | H194: 7.609854753 | I194: 76.8 | J194: 68.68822005 | L194: 10.89
A195: 187 | B195: 13.57 | C195: 3.577832894 | D195: 549.1793694 | E195: 0.04657939862 | F195: 4.36 | G195: 59.49 | H195: 6.699648559 | I195: 91.24 | J195: 74.4109267 | L195: 10.96
A196: 188 | B196: 10.96 | C196: 3.43025206 | D196: 560.7278667 | E196: 0.05688561605 | F196: 4.47 | G196: 59.37 | H196: 10.09039226 | I196: 70.68 | J196: 49.69606906 | L196: 10.98
A197: 189 | B197: 65.52 | C197: 3.269905922 | D197: 555.2571396 | E197: 0.05593368783 | F197: 4.49 | G197: 60.82 | H197: 9.164325517 | I197: 59.51 | J197: 60.68343106 | L197: 10.98
A198: 190 | B198: 4.49 | C198: 3.527728292 | D198: 543.5413247 | E198: 0.05501399535 | F198: 4.39 | G198: 60.33 | H198: 3.974515929 | I198: 100.01 | J198: 78.59455434 | L198: 11
A199: 191 | B199: 22.29 | C199: 3.390156174 | D199: 557.1513738 | E199: 0.04126069923 | F199: 4.76 | G199: 61.05 | H199: 8.135495414 | I199: 81.47 | J199: 105.3007299 | L199: 11.1
A200: 192 | B200: 17.16 | C200: 3.228781827 | D200: 556.4933821 | E200: 0.04271356484 | F200: 4.5 | G200: 62.37 | H200: 7.020019722 | I200: 66.29 | J200: 57.86099902 | L200: 11.23
A201: 193 | B201: 14.86 | C201: 3.270673148 | D201: 544.2934492 | E201: 0.05545864862 | F201: 4.48 | G201: 60.22 | H201: 7.770768167 | I201: 65.9 | J201: 55.98384514 | L201: 11.29
A202: 194 | B202: 13.84 | C202: 3.268890549 | D202: 545.3720771 | E202: 0.0748054046 | F202: 4.57 | G202: 63.81 | H202: 7.347116077 | I202: 76.51 | J202: 59.94620409 | L202: 11.53
A203: 195 | B203: -9.34 | C203: 3.485313196 | D203: 542.4806974 | E203: 0.04268628393 | F203: 4.54 | G203: 59.13 | H203: 9.721171948 | I203: 76.98 | J203: 80.36637128 | L203: 11.82
A204: 196 | B204: 57.25 | C204: 3.550436375 | D204: 595.066694 | E204: 0.04169434382 | F204: 4.61 | G204: 59.13 | H204: 7.894430077 | I204: 65.49 | J204: 49.75478962 | L204: 11.92
A205: 197 | B205: 0.03 | C205: 3.359662169 | D205: 525.3629621 | E205: 0.04572190424 | F205: 4.66 | G205: 59.37 | H205: 9.74722718 | I205: 86.22 | J205: 50.94605814 | L205: 11.97
... 303 more rows
